Workbook

Sheet Приложение 4
AC1: Приложение 2
AC2: к муниципальной программе Весьегонского муниципального округа Тверской области "Развитие системы образования Весьегонского муниципального округа Тверской области" на 2021-2027 годы
C3: Отчет
C4: о реализации муниципальной программы Весьегонского муниципального округа Тверской области «____________»
C5: ( название программы)
C6: за _____________________________________
C7: (указывается отчетный финансовый год)
C8: Главный администратор (администратор) муниципальной программы Весьегонского муниципального округа Тверской области ____________________________
C10: Принятые обозначения и сокращения:
C11: 1.Программа - муниципальная программа муниципального образования Тверской области
C12: 2. Подпрограмма - подпрограмма муниципальной программы Весьегонского района Тверской области
A13: Коды бюджетной классификации | O13: Дополнительный аналитический код | Y13: Цели программы, подпрограммы, задачи подпрограммы, мероприятия подпрограммы, административные мероприятия и их показатели | Z13: Единица измерения | AA13: Результаты реализации программы в 20__ году
A14: код администратора программы | D14: раздел | F14: подраздел | H14: классификация целевой статьи расхода бюджета | AA14: план | AB14: факт | AC14: индексы освоения бюджетных средств и достижения плановых значений показателей | AD14: причины отклонений от плана
A17: 1 | B17: 2 | C17: 3 | D17: 4 | E17: 5 | F17: 6 | G17: 7 | H17: 8 | I17: 9 | J17: 10 | K17: 11 | L17: 12 | M17: 13 | N17: 14 | O17: =N17+1 -> 15 | P17: 16 | Q17: 17 | R17: 18 | S17: 19 | T17: 20 | U17: 21 | V17: 22 | W17: 23 | X17: 24 | Y17: 25 | Z17: 26 | AA17: 27 | AB17: 28 | AC17: 29 | AD17: 30
Y18: Программа , всего | Z18: тыс. рублей
Y19: Программная часть | Z19: тыс. рублей
Y20: Цель программы 1 (наименование)
Y21: Показатель цели программы 1 (наименование) | Z21: единица измерения
Y22: Показатель цели программы 2 (наименование) | Z22: единица измерения
Y23: Цель программы (наименование)
Y24: Показатель цели программы 1 (наименование) | Z24: единица измерения
Y25: Показатель цели программы 2 (наименование) | Z25: единица измерения
Y26: Подпрограмма 1 (наименование) | Z26: тыс. рублей
Y27: Задача подпрограммы 1 (наименование) | Z27: тыс. рублей
Y28: Показатель задачи подпрограммы 1 (наименование) | Z28: единица измерения
Y29: Показатель задачи подпрограммы 2(наименование) | Z29: единица измерения
Y30: Мероприятие подпрограммы 1.001 (наименование) | Z30: тыс. рублей
Y31: Показатель мероприятия подпрограммы 1 (наименование) | Z31: единица измерения
Y32: Показатель мероприятия подпрограммы 2 (наименование) | Z32: единица измерения.
Y33: Мероприятие подпрограммы 1.002 (наименование) | Z33: тыс. рублей
Y34: Показатель мероприятия подпрограммы 1 (наименование) | Z34: единица измерения
Y35: Показатель мероприятия подпрограммы 2 (наименование) | Z35: единица измерения
Y36: Задача подпрограммы 2 (наименование) | Z36: тыс. рублей
Y37: Показатель задачи подпрограммы 1 (наименование) | Z37: единица измерения
Y38: Показатель задачи подпрограммы 2 (наименование) | Z38: единица измерения
Y39: Мероприятие подпрограммы 2.001 (наименование) | Z39: тыс. рублей
Y40: Показатель мероприятия подпрограммы 1 (наименование) | Z40: единица измерения
Y41: Показатель мероприятия подпрограммы 2 (наименование) | Z41: единица измерения.
Y42: Административное мероприятие 2.002 (наименование административного мероприятия) | Z42: (да/нет)
Y43: Показатель административного мероприятие (наименование) | Z43: единица измерения
Y44: Мероприятие подпрограммы 2.003 (наименование) | Z44: тыс. рублей
Y45: Показатель мероприятия подпрограммы 1 (наименование) | Z45: единица измерения
Y46: Показатель мероприятия подпрограммы 2 (наименование) | Z46: единица измерения
Y47: Подпрограмма 2 (наименование) | Z47: тыс. рублей
Y48: Задача подпрограммы 1 (наименование) | Z48: тыс. рублей
Y49: Показатель задачи подпрограммы 1 (наименование) | Z49: единица измерения
Y50: Показатель задачи подпрограммы 2 (наименование) | Z50: единица измерения
Y51: Административное мероприятие 1.001 (наименование административного мероприятия) | Z51: (да/нет)
Y52: Показатель административного мероприятия (наименование) | Z52: единица измерения
Y53: Административное мероприятие 1.002 (наименование административного мероприятия) | Z53: (да/нет)
Y54: Показатель административного мероприятия (наименование) | Z54: единица измерения
Y55: Задача подпрограммы 2 (наименование) | Z55: тыс. рублей
Y56: Показатель задачи подпрограммы 1 (наименование) | Z56: единица измерения
Y57: Показатель задачи подпрограммы 2 (наименование) | Z57: единица измерения
Y58: Административное мероприятие 2.001 (наименование административного мероприятия) | Z58: (да/нет)
Y59: Показатель административного мероприятия (наименование) | Z59: единица измерения
Y60: Административное мероприятие 2.002 (наименование административного мероприятия) | Z60: (да/нет)
Y61: Показатель административного мероприятия (наименование) | Z61: единица измерения.
Y62: Мероприятие подпрограммы 2.003 (наименование) | Z62: тыс. рублей
Y63: Показатель мероприятия подпрограммы (наименование) | Z63: единица измерения
Y64: Обеспечивающая подпрограмма 9 | Z64: тыс. рублей
Y65: 1. Обеспечение деятельности главного администратора программы и администраторов программы | Z65: тыс. рублей
Y66: 1.001 Расходы на руководство и управление (наименование главного администратора программы) | Z66: тыс. рублей
Y67: 1.002 Расходы на руководство и управление (наименование администратора программы) | Z67: тыс. рублей
Y68: 1.003 Расходы на руководство и управление (наименование администратора программы) | Z68: тыс. рублей
J71: Основные результаты реализации муниципальной программы в отчетном финансовом году:
J72: Индекс достижения плановых значений показателей муниципальной программы :
J73: Индекс освоения бюджетных средств, выделенных на реализацию муниципальной программы:
J74: Критерий эффективности реализации муниципальной программы:
K75: Критерий выполнения в рамках программы основных показателей стратегии и (или) программы социально - экономического развития Тверской области:
B76: _________________________________________________________________________________________________________ (наименование должности руководителя главного администратора (администратора) программы ) | AB76: ____________ _______________________ (подпись) (инициалы, фамилия)
J77: «_______» ________________________ 20_____ г.

Sheet Диаграмма1

Sheet Приложение 3
AE2: Приложение 1 к муниципальной программе Весьегонского муниципального округа Тверской области "Развитие системы образования Весьегонского муниципального округа Тверской области" на 2023-2028 годы от 30.12.2022 № 608
D5: Характеристика муниципальной программы Весьегонского муниципального округа Тверской области
D6: "Развитие системы образования Весьегонского муниципального округа Тверской области" на 2023-2028 годы"
D7: (наименование муниципальной программы)
D8: Главный администратор (администратор) муниципальной программы - Отдел образования администрации Весьегонского муниципального округа Тверской области
J10: Принятые обозначения и сокращения:
J11: 1.Программа - муниципальная программа Весьегонского муниципального округа Тверской области
J12: 2. Подпрограмма - подпрограмма муниципальной программы Весьегонского муниципального округа Тверской области
B14: Коды бюджетной классификации | S14: Дополнительный аналитический код | AC14: Цели программы, подпрограммы, задачи подпрограммы, мероприятия подпрограммы, административные мероприятия и их показатели | AD14: Единица измерения
B15: код администратора программы | E15: раздел | G15: подраздел | I15: код целевой статьи расхода бюджета
I16: программа | K16: подпрограмма | L16: задача подпрограммы | N16: направление расходов | S16: программа | U16: подпрограмма | V16: цель программы | W16: задача программы
X17: мероприятия | AA17: показатели | AE17: 2023 | AF17: 2024 | AG17: 2025 | AH17: 2026 | AI17: 2027 | AJ17: 2028 | AK17: значение | AL17: год достижения
B18: 1 | C18: 2 | D18: 3 | E18: 4 | F18: 5 | G18: 6 | H18: 7 | I18: 8 | J18: 9 | K18: 10 | L18: 11 | M18: 12 | N18: 13 | O18: 14 | P18: 15 | Q18: 16 | R18: 17 | S18: 18 | T18: 19 | U18: 20 | V18: 21 | W18: 22 | X18: 23 | Y18: 24 | Z18: 25 | AA18: 26 | AB18: 27 | AC18: 28 | AD18: 29 | AE18: 30 | AF18: 31 | AG18: 32 | AK18: 33 | AL18: 34
B19: 8 | C19: 0 | D19: 5 | E19: 0 | F19: 0 | G19: 0 | H19: 0 | I19: 1 | J19: 7 | K19: 0 | L19: 0 | M19: 0 | N19: 0 | O19: 0 | P19: 0 | Q19: 0 | R19: 0 | S19: 1 | T19: 7 | U19: 0 | V19: 0 | W19: 0 | X19: 0 | Y19: 0 | Z19: 0 | AA19: 0 | AB19: 0 | AC19: Программа , всего | AD19: рублей | AE19: =AE29+AE62+AE133+AE174+AE224+AE237+AE245 -> 190970103 | AF19: 179452196 | AG19: 177682931 | AH19: 177682931 | AI19: 177682931 | AJ19: 177682931 | AK19: =AE19+AF19+AG19+AH19+AI19+AJ19 -> 1081154023 | AL19: 2023-2028
B20: 8 | C20: 0 | D20: 5 | E20: 0 | F20: 0 | G20: 0 | H20: 0 | I20: 1 | J20: 7 | K20: 0 | L20: 0 | M20: 0 | N20: 0 | O20: 0 | P20: 0 | Q20: 0 | R20: 0 | S20: 1 | T20: 7 | U20: 0 | V20: 1 | W20: 0 | X20: 0 | Y20: 0 | Z20: 0 | AA20: 0 | AB20: 0 | AC20: Цель: повышение качества и доступности предоставляемых образовательных услуг населению Весьегонского муниципального округа Тверской области за счет эффективного использования материально-технических, кадровых, финансовых и управленческих ресурсов. | AL20: 2023-2028
B21: 8 | C21: 0 | D21: 5 | E21: 0 | F21: 0 | G21: 0 | H21: 0 | I21: 1 | J21: 7 | K21: 0 | L21: 0 | M21: 0 | N21: 0 | O21: 0 | P21: 0 | Q21: 0 | R21: 0 | S21: 1 | T21: 7 | U21: 0 | V21: 1 | W21: 0 | X21: 0 | Y21: 0 | Z21: 0 | AA21: 0 | AB21: 1 | AC21: Показатель 1. Реализаация мероприятий национального проекта « Образование» | AD21: да - 1, нет - 0 | AE21: 1 | AF21: 1 | AG21: 1 | AH21: 1 | AI21: 1 | AJ21: 1 | AK21: 1 | AL21: 2023-2028
B22: 8 | C22: 0 | D22: 5 | E22: 0 | F22: 0 | G22: 0 | H22: 0 | I22: 1 | J22: 7 | K22: 0 | L22: 0 | M22: 0 | N22: 0 | O22: 0 | P22: 0 | Q22: 0 | R22: 0 | S22: 1 | T22: 7 | U22: 0 | V22: 1 | W22: 0 | X22: 0 | Y22: 0 | Z22: 0 | AA22: 0 | AB22: 2 | AC22: Показатель 2. Уровень удовлетворенности населения Весьегонского муниципального округа качеством предоставления услуг в области дошкольного образования | AD22: % | AE22: 90 | AF22: 90 | AG22: 90 | AH22: 90 | AI22: 90 | AJ22: 90 | AK22: 90 | AL22: 2023-2028
B23: 8 | C23: 0 | D23: 5 | E23: 0 | F23: 0 | G23: 0 | H23: 0 | I23: 1 | J23: 7 | K23: 0 | L23: 0 | M23: 0 | N23: 0 | O23: 0 | P23: 0 | Q23: 0 | R23: 0 | S23: 1 | T23: 7 | U23: 0 | V23: 1 | W23: 0 | X23: 0 | Y23: 0 | Z23: 0 | AA23: 0 | AB23: 3 | AC23: Показатель3.Уровень удовлетворенности населения Весьегонского муниципального округа качеством услуг общего образования | AD23: % | AE23: 88 | AF23: 90 | AG23: 90 | AH23: 90 | AI23: 90 | AJ23: 90 | AK23: 90 | AL23: 2023-2028
B24: 8 | C24: 0 | D24: 5 | E24: 0 | F24: 0 | G24: 0 | H24: 0 | I24: 1 | J24: 7 | K24: 0 | L24: 0 | M24: 0 | N24: 0 | O24: 0 | P24: 0 | Q24: 0 | R24: 0 | S24: 1 | T24: 7 | U24: 0 | V24: 1 | W24: 0 | X24: 0 | Y24: 0 | Z24: 0 | AA24: 0 | AB24: 4 | AC24: Показатель 4. Уровень удовлетворенности населения Весьегонского муниципального округа услугами дополнительного образования . | AD24: % | AE24: 90 | AF24: 92 | AG24: 92 | AH24: 93 | AI24: 93 | AJ24: 94 | AK24: 94 | AL24: 2023-2028
B25: 8 | C25: 0 | D25: 5 | E25: 0 | F25: 0 | G25: 0 | H25: 0 | I25: 1 | J25: 7 | K25: 0 | L25: 0 | M25: 0 | N25: 0 | O25: 0 | P25: 0 | Q25: 0 | R25: 0 | S25: 1 | T25: 7 | U25: 0 | V25: 1 | W25: 0 | X25: 0 | Y25: 0 | Z25: 0 | AA25: 0 | AB25: 5 | AC25: Показатель 5. Доля образовательных организаций, техническое состояние которых является удовлетворительным | AD25: % | AE25: 100 | AF25: 100 | AG25: 100 | AH25: 100 | AI25: 100 | AJ25: 100 | AK25: 85 | AL25: 2023-2028
B26: 8 | C26: 0 | D26: 5 | E26: 0 | F26: 0 | G26: 0 | H26: 0 | I26: 1 | J26: 7 | K26: 0 | L26: 0 | M26: 0 | N26: 0 | O26: 0 | P26: 0 | Q26: 0 | R26: 0 | S26: 1 | T26: 7 | U26: 0 | V26: 1 | W26: 0 | X26: 0 | Y26: 0 | Z26: 0 | AA26: 0 | AB26: 6 | AC26: Показатель 6. Улучшение показателей здоровья детей в образовательных организациях Весьегонского муниципального округа | AD26: да - 1, нет - 0 | AE26: 1 | AF26: 1 | AG26: 1 | AH26: 1 | AI26: 1 | AJ26: 1 | AK26: 1 | AL26: 2023-2028
B27: 8 | C27: 0 | D27: 5 | E27: 0 | F27: 0 | G27: 0 | H27: 0 | I27: 1 | J27: 7 | K27: 0 | L27: 0 | M27: 0 | N27: 0 | O27: 0 | P27: 0 | Q27: 0 | R27: 0 | S27: 1 | T27: 7 | U27: 0 | V27: 1 | W27: 0 | X27: 0 | Y27: 0 | Z27: 0 | AA27: 0 | AB27: 7 | AC27: Показатель 7. Соответствие сайтов образовательных организаций новым требованиям Рособрнадзора | AD27: да - 1, нет - 0 | AE27: 1 | AF27: 1 | AG27: 1 | AH27: 1 | AI27: 1 | AJ27: 1 | AK27: 1 | AL27: 2023-2028
B28: 8 | C28: 0 | D28: 5 | E28: 0 | F28: 0 | G28: 0 | H28: 0 | I28: 1 | J28: 7 | K28: 0 | L28: 0 | M28: 0 | N28: 0 | O28: 0 | P28: 0 | Q28: 0 | R28: 0 | S28: 1 | T28: 7 | U28: 0 | V28: 1 | W28: 0 | X28: 0 | Y28: 0 | Z28: 0 | AA28: 0 | AB28: 8 | AC28: Показатель 8 . Соответствие образовательных организаций Весьегонского муниципального округа новым требованиям САНПиН и эпидемической ситуации | AD28: да - 1, нет - 0 | AE28: 1 | AF28: 1 | AG28: 1 | AH28: 1 | AI28: 1 | AJ28: 1 | AK28: 1 | AL28: 2023-2028
B29: 8 | C29: 0 | D29: 5 | E29: 0 | F29: 0 | G29: 0 | H29: 0 | I29: 1 | J29: 7 | K29: 0 | L29: 0 | M29: 0 | N29: 0 | O29: 0 | P29: 0 | Q29: 0 | R29: 0 | S29: 1 | T29: 7 | U29: 1 | V29: 0 | W29: 0 | X29: 0 | Y29: 0 | Z29: 0 | AA29: 0 | AB29: 0 | AC29: Подпрограмма 1 " Организация дошкольного образования" | AD29: рублей | AE29: =AE30+AE39 -> 51896784 | AF29: =AF30+AF39 -> 49251342 | AG29: 49251342 | AH29: 49251342 | AI29: 49251342 | AJ29: 49251342 | AK29: =AJ29+AI29+AH29+AG29+AF29+AE29 -> 298153494 | AL29: 2023-2028
B30: 8 | C30: 0 | D30: 5 | E30: 0 | F30: 7 | G30: 0 | H30: 1 | I30: 1 | J30: 7 | K30: 1 | L30: 0 | M30: 1 | N30: 0 | O30: 0 | P30: 0 | Q30: 0 | R30: 0 | S30: 1 | T30: 7 | U30: 1 | V30: 0 | W30: 1 | X30: 0 | Y30: 0 | Z30: 0 | AA30: 0 | AB30: 0 | AC30: Задача 1.Организация предоставления общедоступного бесплатного дошкольного образования на территории Весьегонского муниципального округа Тверской области за счет средств регионального бюджета | AD30: рублей | AE30: =AE31+AE35 -> 23040100 | AF30: =AF31+AF35 -> 23040100 | AG30: 23040100 | AH30: 23040100 | AI30: 23040100 | AJ30: 23040100 | AK30: =AE30+AF30+AG30+AH30+AI30+AJ30 -> 138240600 | AL30: 2023-2028
B31: 8 | C31: 0 | D31: 5 | E31: 0 | F31: 7 | G31: 0 | H31: 1 | I31: 1 | J31: 7 | K31: 1 | L31: 0 | M31: 1 | N31: 1 | O31: 0 | P31: 7 | Q31: 4 | R31: 0 | S31: 1 | T31: 7 | U31: 1 | V31: 0 | W31: 1 | X31: 1 | Y31: 1 | Z31: 0 | AA31: 0 | AB31: 0 | AC31: Мероприятие 1.1.Субвенции на обеспечение государственных гарантий реализации прав на получение общедоступного и бесплатного дошкольного образования в муниципальных дошкольных образовательных организациях Тверской области | AD31: рублей | AE31: 21653100 | AF31: 21653100 | AG31: 21653100 | AH31: 21653100 | AI31: 21653100 | AJ31: 21653100 | AK31: =AE31+AF31+AG31+AH31+AI31+AJ31 -> 129918600 | AL31: 2023-2028
B32: 8 | C32: 0 | D32: 5 | E32: 0 | F32: 7 | G32: 0 | H32: 1 | I32: 1 | J32: 7 | K32: 1 | L32: 0 | M32: 1 | N32: 1 | O32: 0 | P32: 7 | Q32: 4 | R32: 0 | S32: 1 | T32: 7 | U32: 1 | V32: 0 | W32: 1 | X32: 1 | Y32: 1 | Z32: 0 | AA32: 0 | AB32: 1 | AC32: Показатель 1. Доля дошкольных образовательных организаций , где введен эффективный контракт | AD32: % | AE32: 100 | AF32: 100 | AG32: 100 | AH32: 100 | AI32: 100 | AJ32: 100 | AK32: 100 | AL32: 2023-2028
B33: 8 | C33: 0 | D33: 5 | E33: 0 | F33: 7 | G33: 0 | H33: 1 | I33: 1 | J33: 7 | K33: 1 | L33: 0 | M33: 1 | N33: 1 | O33: 0 | P33: 7 | Q33: 4 | R33: 0 | S33: 1 | T33: 7 | U33: 1 | V33: 0 | W33: 1 | X33: 1 | Y33: 1 | Z33: 0 | AA33: 0 | AB33: 2 | AC33: Показатель. 2 Отношение среднемесячной заработной платы педагогических работников муниципальных дошкольных образовательных учреждений к среднемесячной заработной плате организаций общего образования в Весьегонском муниципальном округе Тверской области | AD33: % | AE33: 100 | AF33: 100 | AG33: 100 | AH33: 100 | AI33: 100 | AJ33: 100 | AK33: 100 | AL33: 2023-2028
B34: 8 | C34: 0 | D34: 5 | E34: 0 | F34: 7 | G34: 0 | H34: 1 | I34: 1 | J34: 7 | K34: 1 | L34: 0 | M34: 1 | N34: 1 | O34: 0 | P34: 7 | Q34: 4 | R34: 0 | S34: 1 | T34: 7 | U34: 1 | V34: 0 | W34: 1 | X34: 1 | Y34: 1 | Z34: 0 | AA34: 0 | AB34: 3 | AC34: Показатель 3. Наличие просроченной кредиторской задолженности дошкольных образовательных организаций | AD34: да - 1, нет - 0 | AE34: 0 | AF34: 0 | AG34: 0 | AH34: 0 | AI34: 0 | AJ34: 0 | AK34: 0 | AL34: 2023-2028
B35: 8 | C35: 0 | D35: 5 | E35: 1 | F35: 0 | G35: 0 | H35: 4 | I35: 1 | J35: 7 | K35: 1 | L35: 0 | M35: 1 | N35: 1 | O35: 0 | P35: 5 | Q35: 0 | R35: 0 | S35: 1 | T35: 7 | U35: 1 | V35: 0 | W35: 1 | X35: 1 | Y35: 2 | Z35: 0 | AA35: 0 | AB35: 0 | AC35: Мероприятие 1.2. Субвенция на осуществление государственных полномочий по предоставлению компенсации части родительской платы за присмотр и уход за ребенком в муниципальных образовательных организациях и иных образовательных организациях (за исключением государственных образовательных организаций ), реализующих общеобразовательную программу дошкольного образования. | AD35: рублей | AE35: 1387000 | AF35: 1387000 | AG35: 1387000 | AH35: 1387000 | AI35: 1387000 | AJ35: 1387000 | AK35: =AE35+AF35+AG35+AH35+AI35+AJ35 -> 8322000 | AL35: 2023-2028
B36: 8 | C36: 0 | D36: 5 | E36: 1 | F36: 0 | G36: 0 | H36: 4 | I36: 1 | J36: 7 | K36: 1 | L36: 0 | M36: 1 | N36: 1 | O36: 0 | P36: 5 | Q36: 0 | R36: 0 | S36: 1 | T36: 7 | U36: 1 | V36: 0 | W36: 1 | X36: 1 | Y36: 2 | Z36: 0 | AA36: 0 | AB36: 1 | AC36: Показатель 1. Численность родителей, получающих компенсацию на первого ребенка | AD36: чел. | AE36: 178 | AF36: 180 | AG36: 180 | AH36: 180 | AI36: 180 | AJ36: 180 | AK36: 1078 | AL36: 2023-2028
B37: 8 | C37: 0 | D37: 5 | E37: 1 | F37: 0 | G37: 0 | H37: 4 | I37: 1 | J37: 7 | K37: 1 | L37: 0 | M37: 1 | N37: 1 | O37: 0 | P37: 5 | Q37: 0 | R37: 0 | S37: 1 | T37: 7 | U37: 1 | V37: 0 | W37: 1 | X37: 1 | Y37: 2 | Z37: 0 | AA37: 0 | AB37: 2 | AC37: Показатель 2. Численность родителей получающих компенсацию на второго ребенка | AD37: чел. | AE37: 168 | AF37: 170 | AG37: 170 | AH37: 170 | AI37: 170 | AJ37: 170 | AK37: 1018 | AL37: 2023-2028
B38: 8 | C38: 0 | D38: 5 | E38: 1 | F38: 0 | G38: 0 | H38: 4 | I38: 1 | J38: 7 | K38: 1 | L38: 0 | M38: 1 | N38: 1 | O38: 0 | P38: 5 | Q38: 0 | R38: 0 | S38: 1 | T38: 7 | U38: 1 | V38: 0 | W38: 1 | X38: 1 | Y38: 2 | Z38: 0 | AA38: 0 | AB38: 3 | AC38: Показатель 3. Численность родителей получающих компенсацию на третьего и последующих детей | AD38: чел. | AE38: 57 | AF38: 60 | AG38: 60 | AH38: 60 | AI38: 60 | AJ38: 60 | AK38: 357 | AL38: 2023-2028
B39: 8 | C39: 0 | D39: 5 | E39: 0 | F39: 7 | G39: 0 | H39: 1 | I39: 1 | J39: 7 | K39: 1 | L39: 0 | M39: 2 | N39: 0 | O39: 0 | P39: 0 | Q39: 0 | R39: 0 | S39: 1 | T39: 7 | U39: 1 | V39: 0 | W39: 2 | X39: 0 | Y39: 0 | Z39: 0 | AA39: 0 | AB39: 0 | AC39: Задача 2 Организация предоставления общедоступного бесплатного дошкольного образования на территории Весьегонского муниципального округа Тверской области за счет средств местного бюджета | AD39: рублей | AE39: =AE42+AE54+AE57 -> 28856684 | AF39: =AF42+AF54+AF57 -> 26211242 | AG39: 26211242 | AH39: 26211242 | AI39: 26211242 | AJ39: 26211242 | AK39: =AE39+AF39+AG39+AH39+AI39+AJ39 -> 159912894 | AL39: 2023-2028
B40: 8 | C40: 0 | D40: 5 | E40: 0 | F40: 7 | G40: 0 | H40: 1 | I40: 1 | J40: 7 | K40: 1 | L40: 0 | M40: 2 | N40: 0 | O40: 0 | P40: 0 | Q40: 0 | R40: 0 | S40: 1 | T40: 7 | U40: 1 | V40: 0 | W40: 2 | X40: 0 | Y40: 0 | Z40: 0 | AA40: 0 | AB40: 1 | AC40: Показатель 1. Количество детей Весьегонского муниципального округа, посещающих дошкольные образовательные организации | AD40: чел. | AE40: 320 | AF40: 320 | AG40: 320 | AH40: 320 | AI40: 320 | AJ40: 320 | AK40: 320 | AL40: 2023-2028
B41: 8 | C41: 0 | D41: 5 | E41: 0 | F41: 7 | G41: 0 | H41: 1 | I41: 1 | J41: 7 | K41: 1 | L41: 0 | M41: 2 | N41: 0 | O41: 0 | P41: 0 | Q41: 0 | R41: 0 | S41: 1 | T41: 7 | U41: 1 | V41: 0 | W41: 2 | X41: 0 | Y41: 0 | Z41: 0 | AA41: 0 | AB41: 2 | AC41: Показатель 2. Уровень удовлетворенности населения качеством предоставляемых услуг дошкольного образования | AD41: % | AE41: 90 | AF41: 90 | AG41: 90 | AH41: 90 | AI41: 90 | AJ41: 90 | AK41: 90 | AL41: 2023-2028
B42: 8 | C42: 0 | D42: 5 | E42: 0 | F42: 7 | G42: 0 | H42: 1 | I42: 1 | J42: 7 | K42: 1 | L42: 0 | M42: 2 | N42: 2 | O42: 0 | P42: 2 | Q42: 1 | R42: 0 | S42: 1 | T42: 7 | U42: 1 | V42: 0 | W42: 2 | X42: 2 | Y42: 1 | Z42: 0 | AA42: 0 | AB42: 0 | AC42: Мероприятие 2.1. Обеспечение деятельности дошкольных образовательных организаций | AD42: рублей | AE42: 25415582 | AF42: 23170140 | AG42: 23170140 | AH42: 23170140 | AI42: 23170140 | AJ42: 23170140 | AK42: =AE42+AF42+AG42+AH42+AI42+AJ42 -> 141266282 | AL42: 2023-2028
B43: 8 | C43: 0 | D43: 5 | E43: 0 | F43: 7 | G43: 0 | H43: 1 | I43: 1 | J43: 7 | K43: 1 | L43: 0 | M43: 2 | N43: 2 | O43: 0 | P43: 2 | Q43: 1 | R43: 0 | S43: 1 | T43: 7 | U43: 1 | V43: 0 | W43: 2 | X43: 2 | Y43: 1 | Z43: 0 | AA43: 0 | AB43: 1 | AC43: Показатель 1. Увеличение охвата детей дошкольным образованием | AD43: % | AE43: 82 | AF43: 86 | AG43: 86 | AH43: 87 | AI43: 87 | AJ43: 88 | AK43: 88 | AL43: 2023-2028
B44: 8 | C44: 0 | D44: 5 | E44: 0 | F44: 7 | G44: 0 | H44: 1 | I44: 1 | J44: 7 | K44: 1 | L44: 0 | M44: 2 | N44: 2 | O44: 0 | P44: 2 | Q44: 2 | R44: 0 | S44: 1 | T44: 7 | U44: 1 | V44: 0 | W44: 2 | X44: 2 | Y44: 2 | Z44: 0 | AA44: 0 | AB44: 0 | AC44: Мероприятие 2.2. Внедрение федеральных государственных образовательных стандартов дошкольного образования (далее ФГОС); | AD44: рублей | AE44: 0 | AF44: 0 | AG44: 0 | AH44: 0 | AI44: 0 | AJ44: 0 | AK44: 0 | AL44: 2023-2028
B45: 8 | C45: 0 | D45: 5 | E45: 0 | F45: 7 | G45: 0 | H45: 1 | I45: 1 | J45: 7 | K45: 1 | L45: 0 | M45: 2 | N45: 2 | O45: 0 | P45: 2 | Q45: 2 | R45: 0 | S45: 1 | T45: 7 | U45: 1 | V45: 0 | W45: 2 | X45: 2 | Y45: 2 | Z45: 0 | AA45: 0 | AB45: 1 | AC45: Показатель 1. Обновление требований к условиям предоставления услуг дошкольного образования и мониторинг их выполнения | AD45: да - 1, нет - 0 | AE45: 1 | AF45: 1 | AG45: 1 | AH45: 1 | AI45: 1 | AJ45: 1 | AK45: 1 | AL45: 2023-2028
B46: 8 | C46: 0 | D46: 5 | E46: 0 | F46: 7 | G46: 0 | H46: 1 | I46: 1 | J46: 7 | K46: 1 | L46: 0 | M46: 2 | N46: 2 | O46: 0 | P46: 2 | Q46: 2 | R46: 0 | S46: 1 | T46: 7 | U46: 1 | V46: 0 | W46: 2 | X46: 2 | Y46: 2 | Z46: 0 | AA46: 0 | AB46: 2 | AC46: Показатель 2. Доля дошкольных образовательных организаций перешедших на новый государственный образовательный стандарт | AD46: % | AE46: 100 | AF46: 100 | AG46: 100 | AH46: 100 | AI46: 100 | AJ46: 100 | AK46: 100 | AL46: 2023-2028
B47: 8 | C47: 0 | D47: 5 | E47: 0 | F47: 7 | G47: 0 | H47: 1 | I47: 1 | J47: 7 | K47: 1 | L47: 0 | M47: 2 | N47: 2 | O47: 0 | P47: 2 | Q47: 2 | R47: 0 | S47: 1 | T47: 7 | U47: 1 | V47: 0 | W47: 2 | X47: 2 | Y47: 2 | Z47: 0 | AA47: 0 | AB47: 3 | AC47: Показатель 3. .Внедрение системы оценки качества дошкольного образования | AD47: да - 1, нет - 0 | AE47: 1 | AF47: 1 | AG47: 1 | AH47: 1 | AI47: 1 | AJ47: 1 | AK47: 1 | AL47: 2023-2028
B48: 8 | C48: 0 | D48: 5 | E48: 0 | F48: 7 | G48: 0 | H48: 1 | I48: 1 | J48: 7 | K48: 1 | L48: 0 | M48: 2 | N48: 2 | O48: 0 | P48: 2 | Q48: 2 | R48: 0 | S48: 1 | T48: 7 | U48: 1 | V48: 0 | W48: 2 | X48: 2 | Y48: 2 | Z48: 0 | AA48: 0 | AB48: 4 | AC48: Показатель 4. Доля педагогических работников, прошедших курсы повышения квалификации | AD48: % | AE48: 60 | AF48: 80 | AG48: 80 | AH48: 81 | AI48: 81 | AJ48: 83 | AK48: 83 | AL48: 2023-2028
B49: 8 | C49: 0 | D49: 5 | E49: 0 | F49: 7 | G49: 0 | H49: 1 | I49: 1 | J49: 7 | K49: 1 | L49: 0 | M49: 2 | N49: 2 | O49: 0 | P49: 2 | Q49: 2 | R49: 0 | S49: 1 | T49: 7 | U49: 1 | V49: 0 | W49: 2 | X49: 2 | Y49: 2 | Z49: 0 | AA49: 0 | AB49: 5 | AC49: Показатель 5. Доля педагогических работников, имеющих квалификационную категорию. | AD49: % | AE49: 40 | AF49: 50 | AG49: 50 | AH49: 54 | AI49: 54 | AJ49: 56 | AK49: 56 | AL49: 2023-2028
B50: 8 | C50: 0 | D50: 5 | E50: 0 | F50: 7 | G50: 0 | H50: 1 | I50: 1 | J50: 7 | K50: 1 | L50: 0 | M50: 2 | N50: 2 | O50: 0 | P50: 2 | Q50: 2 | R50: 0 | S50: 1 | T50: 7 | U50: 1 | V50: 0 | W50: 2 | X50: 2 | Y50: 2 | Z50: 0 | AA50: 0 | AB50: 6 | AC50: Показатель 6. Для педагогов, являющихся молодыми специалистами или педагогическими работниками до 30 лет | AD50: % | AE50: 10 | AF50: 15 | AG50: 15 | AH50: 15 | AI50: 15 | AJ50: 15 | AK50: 15 | AL50: 2023-2028
B51: 8 | C51: 0 | D51: 5 | E51: 0 | F51: 7 | G51: 0 | H51: 1 | I51: 1 | J51: 7 | K51: 1 | L51: 0 | M51: 2 | N51: 2 | O51: 0 | P51: 2 | Q51: 2 | R51: 0 | S51: 1 | T51: 7 | U51: 1 | V51: 0 | W51: 2 | X51: 2 | Y51: 2 | Z51: 0 | AA51: 0 | AB51: 7 | AC51: Показатель 7. Доля дошкольных образовательных организаций, в которых оценка деятельности всех категорий работников осуществляется на основании показателей эффективности деятельности | AD51: % | AE51: 100 | AF51: 100 | AG51: 100 | AH51: 100 | AI51: 100 | AJ51: 100 | AK51: 100 | AL51: 2023-2028
B52: 8 | C52: 0 | D52: 5 | E52: 0 | F52: 7 | G52: 0 | H52: 1 | I52: 1 | J52: 7 | K52: 1 | L52: 0 | M52: 2 | N52: 2 | O52: 0 | P52: 2 | Q52: 2 | R52: 0 | S52: 1 | T52: 7 | U52: 1 | V52: 0 | W52: 2 | X52: 2 | Y52: 2 | Z52: 0 | AA52: 0 | AB52: 8 | AC52: Показатель 8.Корректировка показателей качества профессиональной деятельности педагогических и работников муниципальных дошкольных образовательных организаций | AD52: да - 1, нет - 0 | AE52: 1 | AF52: 1 | AG52: 1 | AH52: 1 | AI52: 1 | AJ52: 1 | AK52: 1 | AL52: 2023-2028
B53: 8 | C53: 0 | D53: 5 | E53: 0 | F53: 7 | G53: 0 | H53: 1 | I53: 1 | J53: 7 | K53: 1 | L53: 0 | M53: 2 | N53: 2 | O53: 0 | P53: 2 | Q53: 2 | R53: 0 | S53: 1 | T53: 7 | U53: 1 | V53: 0 | W53: 2 | X53: 2 | Y53: 2 | Z53: 0 | AA53: 0 | AB53: 9 | AC53: Показатель 9.Корректировка коллективных, трудовых договоров, должностных инструкций для муниципальных дошкольных образовательных организаций | AD53: да - 1, нет - 0 | AE53: 1 | AF53: 1 | AG53: 1 | AH53: 1 | AI53: 1 | AJ53: 1 | AK53: 1 | AL53: 2023-2028
B54: 8 | C54: 0 | D54: 5 | E54: 0 | F54: 7 | G54: 0 | H54: 1 | I54: 1 | J54: 7 | K54: 1 | L54: 0 | M54: 2 | N54: 2 | O54: 0 | P54: 2 | Q54: 3 | R54: 0 | S54: 1 | T54: 7 | U54: 1 | V54: 0 | W54: 2 | X54: 2 | Y54: 3 | Z54: 0 | AA54: 0 | AB54: 0 | AC54: Мероприятие 2.3.Организация питания в дошкольных образовательных организациях | AD54: рублей | AE54: 3142626 | AF54: 2766626 | AG54: 2766626 | AH54: 2766626 | AI54: 2766626 | AJ54: 2766626 | AK54: =AE54+AF54+AG54+AH54+AI54+AJ54 -> 16975756 | AL54: 2023-2028
B55: 8 | C55: 0 | D55: 5 | E55: 0 | F55: 7 | G55: 0 | H55: 1 | I55: 1 | J55: 7 | K55: 1 | L55: 0 | M55: 2 | N55: 2 | O55: 0 | P55: 2 | Q55: 3 | R55: 0 | S55: 1 | T55: 7 | U55: 1 | V55: 0 | W55: 2 | X55: 2 | Y55: 3 | Z55: 0 | AA55: 0 | AB55: 1 | AC55: Показатель1. Выполнение норм питания в образовательной организации. | AD55: да - 1, нет - 0 | AE55: 1 | AF55: 1 | AG55: 1 | AH55: 1 | AI55: 1 | AJ55: 1 | AK55: 1 | AL55: 2023-2028
B56: 8 | C56: 0 | D56: 5 | E56: 0 | F56: 7 | G56: 0 | H56: 1 | I56: 1 | J56: 7 | K56: 1 | L56: 0 | M56: 2 | N56: 2 | O56: 0 | P56: 2 | Q56: 3 | R56: 0 | S56: 1 | T56: 7 | U56: 1 | V56: 0 | W56: 2 | X56: 2 | Y56: 3 | Z56: 0 | AA56: 0 | AB56: 2 | AC56: Показатель 2. Доля израсходованных средств на организацию полноценного питания в дошкольных образовательных организациях | AD56: % | AE56: 100 | AF56: 100 | AG56: 100 | AH56: 100 | AI56: 100 | AJ56: 100 | AK56: 100 | AL56: 2023-2028
B57: 8 | C57: 0 | D57: 5 | E57: 0 | F57: 7 | G57: 0 | H57: 2 | I57: 1 | J57: 7 | K57: 1 | L57: 0 | M57: 2 | N57: 2 | O57: 0 | P57: 2 | Q57: 4 | R57: 0 | S57: 1 | T57: 7 | U57: 1 | V57: 0 | W57: 2 | X57: 2 | Y57: 4 | Z57: 0 | AA57: 0 | AB57: 0 | AC57: Мероприятие 2.4. Организация питания в дошкольной группе | AD57: рублей | AE57: 298476 | AF57: 274476 | AG57: 274476 | AH57: 274476 | AI57: 274476 | AJ57: 274476 | AK57: =AE57+AF57+AG57+AH57+AI57+AJ57 -> 1670856 | AL57: 2023-2028
B58: 8 | C58: 0 | D58: 5 | E58: 0 | F58: 7 | G58: 0 | H58: 2 | I58: 1 | J58: 7 | K58: 1 | L58: 0 | M58: 2 | N58: 2 | O58: 0 | P58: 2 | Q58: 4 | R58: 0 | S58: 1 | T58: 7 | U58: 1 | V58: 0 | W58: 2 | X58: 2 | Y58: 4 | Z58: 0 | AA58: 0 | AB58: 1 | AC58: Показатель1. Выполнение норм питания в дошкольной группе общеобразовательной организации. | AD58: да - 1, нет - 0 | AE58: 1 | AF58: 1 | AG58: 1 | AH58: 1 | AI58: 1 | AJ58: 1 | AK58: 1 | AL58: 2023-2028
B59: 8 | C59: 0 | D59: 5 | E59: 0 | F59: 7 | G59: 0 | H59: 2 | I59: 1 | J59: 7 | K59: 1 | L59: 0 | M59: 2 | N59: 2 | O59: 0 | P59: 2 | Q59: 4 | R59: 0 | S59: 1 | T59: 7 | U59: 1 | V59: 0 | W59: 2 | X59: 2 | Y59: 4 | Z59: 0 | AA59: 0 | AB59: 2 | AC59: Показатель 2. Доля израсходованных средств на организацию полноценного питания в дошкольных группах общеобразовательных организаций | AD59: % | AE59: 100 | AF59: 100 | AG59: 100 | AH59: 100 | AI59: 100 | AJ59: 100 | AK59: 100 | AL59: 2023-2028
B60: 8 | C60: 0 | D60: 5 | E60: 0 | F60: 7 | G60: 0 | H60: 2 | I60: 1 | J60: 7 | K60: 1 | L60: 0 | M60: 2 | N60: 2 | O60: 0 | P60: 2 | Q60: 5 | R60: 0 | S60: 1 | T60: 7 | U60: 1 | V60: 0 | W60: 2 | X60: 2 | Y60: 5 | Z60: 0 | AA60: 0 | AB60: 0 | AC60: Мероприятие 2.5. Погашение кредиторской задолженности | AD60: рублей | AE60: 0 | AF60: 0 | AG60: 0 | AH60: 0 | AI60: 0 | AJ60: 0 | AK60: =AE60 -> 0 | AL60: 2023-2028
B61: 8 | C61: 0 | D61: 5 | E61: 0 | F61: 7 | G61: 0 | H61: 2 | I61: 1 | J61: 7 | K61: 1 | L61: 0 | M61: 2 | N61: 2 | O61: 0 | P61: 2 | Q61: 5 | R61: 0 | S61: 1 | T61: 7 | U61: 1 | V61: 0 | W61: 2 | X61: 2 | Y61: 5 | Z61: 0 | AA61: 0 | AB61: 1 | AC61: Показатель 1 . Доля учреждений, погасивших кредиторскую задолженность | AD61: % | AE61: 100 | AF61: 100 | AG61: 100 | AH61: 100 | AI61: 100 | AJ61: 100 | AK61: 100 | AL61: 2023-2028
B62: 8 | C62: 0 | D62: 5 | E62: 0 | F62: 7 | G62: 0 | H62: 2 | I62: 1 | J62: 7 | K62: 2 | L62: 0 | M62: 0 | N62: 0 | O62: 0 | P62: 0 | Q62: 0 | R62: 0 | S62: 1 | T62: 7 | U62: 2 | V62: 0 | W62: 0 | X62: 0 | Y62: 0 | Z62: 0 | AA62: 0 | AB62: 0 | AC62: Подпрограмма 2 " Совершенствование системы общего образования" | AD62: рублей | AE62: =AE63+AE68+AE91 -> 118517034 | AF62: =AF63+AF68+AF91 -> 112686362 | AG62: 111187097 | AH62: 111187097 | AI62: 111187097 | AJ62: 111187097 | AK62: =AE62+AF62+AG62+AH62+AI62+AJ62 -> 675951784 | AL62: 2023-2028
B63: 8 | C63: 0 | D63: 5 | E63: 0 | F63: 7 | G63: 0 | H63: 2 | I63: 1 | J63: 7 | K63: 2 | L63: 0 | M63: 1 | N63: 0 | O63: 0 | P63: 0 | Q63: 0 | R63: 0 | S63: 1 | T63: 7 | U63: 2 | V63: 0 | W63: 1 | X63: 0 | Y63: 0 | Z63: 0 | AA63: 0 | AB63: 0 | AC63: Задача 1. Организация предоставления общедоступного бесплатного дошкольного образования на территории Весьегонского муниципального округа Тверской области | AD63: рублей | AE63: =AE64 -> 1242434 | AF63: =AF64 -> 1120627 | AG63: 1120627 | AH63: 1120627 | AI63: 1120627 | AJ63: 1120627 | AK63: =AE63+AF63+AG63+AH63+AI63+AJ63 -> 6845569 | AL63: 2023-2028
B64: 8 | C64: 0 | D64: 5 | E64: 0 | F64: 7 | G64: 0 | H64: 2 | I64: 1 | J64: 7 | K64: 2 | L64: 0 | M64: 1 | N64: 2 | O64: 0 | P64: 1 | Q64: 1 | R64: 0 | S64: 1 | T64: 7 | U64: 2 | V64: 0 | W64: 1 | X64: 1 | Y64: 1 | Z64: 0 | AA64: 0 | AB64: 0 | AC64: Мероприятие 1.1.Обеспечение деятельности групп дошкольного образования детей | AD64: рублей | AE64: 1242434 | AF64: 1120627 | AG64: 1120627 | AH64: 1120627 | AI64: 1120627 | AJ64: 1120627 | AK64: =AE64+AF64+AG64+AH64+AI64+AJ64 -> 6845569 | AL64: 2023-2028
B65: 8 | C65: 0 | D65: 5 | E65: 0 | F65: 7 | G65: 0 | H65: 2 | I65: 1 | J65: 7 | K65: 2 | L65: 0 | M65: 1 | N65: 2 | O65: 0 | P65: 1 | Q65: 1 | R65: 0 | S65: 1 | T65: 7 | U65: 2 | V65: 0 | W65: 1 | X65: 1 | Y65: 1 | Z65: 0 | AA65: 0 | AB65: 1 | AC65: Показатель 1. Введение эффективного контракта | AD65: % | AE65: 100 | AF65: 100 | AG65: 100 | AH65: 100 | AI65: 100 | AJ65: 100 | AK65: 100 | AL65: 2023-2028
B66: 8 | C66: 0 | D66: 5 | E66: 0 | F66: 7 | G66: 0 | H66: 2 | I66: 1 | J66: 7 | K66: 2 | L66: 0 | M66: 1 | N66: 2 | O66: 0 | P66: 1 | Q66: 1 | R66: 0 | S66: 1 | T66: 7 | U66: 2 | V66: 0 | W66: 1 | X66: 1 | Y66: 1 | Z66: 0 | AA66: 0 | AB66: 2 | AC66: Показатель. 2 Отношение среднемесячной заработной платы педагогических работников муниципальных дошкольных группах общеобразовательных организаций к среднемесячной заработной плате организаций общего образования в Весьегонском муниципальном округе Тверской области | AD66: % | AE66: 100 | AF66: 100 | AG66: 100 | AH66: 100 | AI66: 100 | AJ66: 100 | AK66: 100 | AL66: 2023-2028
B67: 8 | C67: 0 | D67: 5 | E67: 0 | F67: 7 | G67: 0 | H67: 2 | I67: 1 | J67: 7 | K67: 2 | L67: 0 | M67: 1 | N67: 2 | O67: 0 | P67: 1 | Q67: 1 | R67: 0 | S67: 1 | T67: 7 | U67: 2 | V67: 0 | W67: 1 | X67: 1 | Y67: 1 | Z67: 0 | AA67: 0 | AB67: 3 | AC67: Показатель 3. Наличие просроченной кредиторской задолженности в дошкольной группе | AD67: да - 1, нет - 0 | AE67: 1 | AF67: 1 | AG67: 1 | AH67: 1 | AI67: 1 | AJ67: 1 | AK67: 1 | AL67: 2023-2028
B68: 8 | C68: 0 | D68: 5 | E68: 0 | F68: 7 | G68: 0 | H68: 2 | I68: 1 | J68: 7 | K68: 2 | L68: 0 | M68: 2 | N68: 0 | O68: 0 | P68: 0 | Q68: 0 | R68: 0 | S68: 1 | T68: 7 | U68: 2 | V68: 0 | W68: 2 | X68: 0 | Y68: 0 | Z68: 0 | AA68: 0 | AB68: 0 | AC68: Задача 2. Предоставление общедоступного и бесплатного общего, основного общего, среднего (полного) общего образования по основным образовательным программам муниципальными общеобразовательными организациями Весьегонского муниципального округа Тверской области за счет средств регионального бюджета | AD68: рублей | AE68: =AE69+AE78+AE80+AE89 -> 82831800 | AF68: =AF69+AF78+AF80+AF89 -> 83279000 | AG68: 83152200 | AH68: 83152200 | AI68: 83152200 | AJ68: 83152200 | AK68: =AE68+AF68+AG68+AH68+AI68+AJ68 -> 498719600 | AL68: 2023-2028
B69: 8 | C69: 0 | D69: 5 | E69: 0 | F69: 7 | G69: 0 | H69: 2 | I69: 1 | J69: 7 | K69: 2 | L69: 0 | M69: 2 | N69: 1 | O69: 0 | P69: 7 | Q69: 5 | R69: 0 | S69: 1 | T69: 7 | U69: 2 | V69: 0 | W69: 2 | X69: 0 | Y69: 0 | Z69: 0 | AA69: 0 | AB69: 0 | AC69: Мероприятие 2.1.Субвенции на обеспечение государственных гарантий реализации прав на получение общедоступного и бесплатного дошкольного, начального общего, основного общего, среднего общего образования в муниципальных образовательных организациях, обеспечение дополнительного образования детей в муниципальных общеобразовательных организациях Тверской области | AD69: рублей | AE69: 73947800 | AF69: 73947800 | AG69: 73947800 | AH69: 73947800 | AI69: 73947800 | AJ69: 73947800 | AK69: =AE69+AF69+AI69+AJ69 -> 295791200 | AL69: 2023-2028
B70: 8 | C70: 0 | D70: 5 | E70: 0 | F70: 7 | G70: 0 | H70: 2 | I70: 1 | J70: 7 | K70: 2 | L70: 0 | M70: 2 | N70: 1 | O70: 0 | P70: 7 | Q70: 5 | R70: 0 | S70: 1 | T70: 7 | U70: 2 | V70: 0 | W70: 2 | X70: 2 | Y70: 1 | Z70: 0 | AA70: 0 | AB70: 1 | AC70: Показатель 1. Наличие нормативного акта ( приказ по отделу образования о распределении субвенций на заработную плату и учебные расходы) | AD70: да - 1, нет - 0 | AE70: 1 | AF70: 1 | AG70: 1 | AH70: 1 | AI70: 1 | AJ70: 1 | AK70: 1 | AL70: 2023-2028
B71: 8 | C71: 0 | D71: 5 | E71: 0 | F71: 7 | G71: 0 | H71: 2 | I71: 1 | J71: 7 | K71: 2 | L71: 0 | M71: 2 | N71: 1 | O71: 0 | P71: 7 | Q71: 5 | R71: 0 | S71: 1 | T71: 7 | U71: 2 | V71: 0 | W71: 2 | X71: 2 | Y71: 1 | Z71: 0 | AA71: 0 | AB71: 2 | AC71: Показатель 2. Доля общеобразовательных организаций , где введен эффективный контракт | AD71: % | AE71: 100 | AF71: 100 | AG71: 100 | AH71: 100 | AI71: 100 | AJ71: 100 | AK71: 100 | AL71: 2023-2028
B72: 8 | C72: 0 | D72: 5 | E72: 0 | F72: 7 | G72: 0 | H72: 2 | I72: 1 | J72: 7 | K72: 2 | L72: 0 | M72: 2 | N72: 1 | O72: 0 | P72: 7 | Q72: 5 | R72: 0 | S72: 1 | T72: 7 | U72: 2 | V72: 0 | W72: 2 | X72: 2 | Y72: 1 | Z72: 0 | AA72: 0 | AB72: 3 | AC72: Показатель 3. Отношение среднемесячной заработной платы педагогических работников муниципальных общеобразовательных организаций к среднемесячной заработной плате в экономике Тверской области | AD72: % | AE72: 100 | AF72: 100 | AG72: 100 | AH72: 100 | AI72: 100 | AJ72: 100 | AK72: 100 | AL72: 2023-2028
B73: 8 | C73: 0 | D73: 5 | E73: 0 | F73: 7 | G73: 0 | H73: 2 | I73: 1 | J73: 7 | K73: 2 | L73: 0 | M73: 2 | N73: 2 | O73: 0 | P73: 2 | Q73: 2 | R73: 0 | S73: 1 | T73: 7 | U73: 2 | V73: 0 | W73: 2 | X73: 2 | Y73: 1 | Z73: 0 | AA73: 0 | AB73: 0 | AC73: Мероприятие 2.2.Приобретение учебно-лабораторного оборудования в муниципальных общеобразовательных организациях | AD73: да - 1, нет - 0 | AE73: 1 | AF73: 1 | AG73: 1 | AH73: 1 | AI73: 1 | AJ73: 1 | AK73: 1 | AL73: 2023-2028
B74: 8 | C74: 0 | D74: 5 | E74: 0 | F74: 7 | G74: 0 | H74: 2 | I74: 1 | J74: 7 | K74: 2 | L74: 0 | M74: 2 | N74: 2 | O74: 0 | P74: 2 | Q74: 2 | R74: 0 | S74: 1 | T74: 7 | U74: 2 | V74: 0 | W74: 2 | X74: 2 | Y74: 2 | Z74: 0 | AA74: 0 | AB74: 1 | AC74: Показатель 1. Доля учебных расходов, направленных на приобретение учебников и учебно-лабораторного оборудования в муниципальных общеобразовательных организациях | AD74: % | AE74: 42 | AF74: 42 | AG74: 42 | AH74: 42 | AI74: 42 | AJ74: 42 | AK74: 42 | AL74: 2023-2028
B75: 8 | C75: 0 | D75: 5 | E75: 0 | F75: 7 | G75: 0 | H75: 2 | I75: 1 | J75: 7 | K75: 2 | L75: 0 | M75: 2 | N75: 2 | O75: 0 | P75: 2 | Q75: 2 | R75: 0 | S75: 1 | T75: 7 | U75: 2 | V75: 0 | W75: 2 | X75: 2 | Y75: 2 | Z75: 0 | AA75: 0 | AB75: 2 | AC75: Показатель 2. Доля муниципальных общеобразовательных учреждений Весьегонского муниципального округа , получивших новое учебно-лабораторное оборудование | AD75: % | AE75: 80 | AF75: 90 | AG75: 90 | AH75: 90 | AI75: 90 | AJ75: 90 | AK75: 90 | AL75: 2023-2028
B76: 8 | C76: 0 | D76: 5 | E76: 0 | F76: 7 | G76: 0 | H76: 2 | I76: 1 | J76: 7 | K76: 2 | L76: 0 | M76: 2 | N76: 2 | O76: 0 | P76: 2 | Q76: 3 | R76: 0 | S76: 1 | T76: 7 | U76: 2 | V76: 0 | W76: 2 | X76: 2 | Y76: 3 | Z76: 0 | AA76: 0 | AB76: 0 | AC76: Мероприятие 2.3.Обеспечение оснащенности общеобразовательных организаций в соответствие с требованиями федеральных государственных образовательных стандартов начального общего и основного общего образования (от % учебных расходов) | AD76: % | AE76: 40 | AF76: 40 | AG76: 40 | AH76: 40 | AI76: 40 | AJ76: 40 | AK76: 40 | AL76: 2023-2028
B77: 8 | C77: 0 | D77: 5 | E77: 0 | F77: 7 | G77: 0 | H77: 2 | I77: 1 | J77: 7 | K77: 2 | L77: 0 | M77: 2 | N77: 2 | O77: 0 | P77: 2 | Q77: 3 | R77: 0 | S77: 1 | T77: 7 | U77: 2 | V77: 0 | W77: 2 | X77: 2 | Y77: 3 | Z77: 0 | AA77: 0 | AB77: 1 | AC77: Показатель1. Доля общеобразовательных организаций, оснащенных в соответствии с требованиями федеральных государственных образовательных стандартов | AD77: % | AE77: 90 | AF77: 90 | AG77: 90 | AH77: 95 | AI77: 98 | AJ77: 100 | AK77: 100 | AL77: 2023-2028
B78: 8 | C78: 0 | D78: 5 | E78: 0 | F78: 7 | G78: 0 | H78: 2 | I78: 1 | J78: 7 | K78: 2 | L78: 0 | M78: 2 | N78: L | O78: 3 | P78: 0 | Q78: 4 | R78: 1 | S78: 1 | T78: 7 | U78: 2 | V78: 0 | W78: 2 | X78: 2 | Y78: 4 | Z78: 0 | AA78: 0 | AB78: 0 | AC78: Мероприятие 2.4. Субсидии на организацию бесплатного горячего питания обучающихся, получающих начальное общее образование в муниципальных образовательных организациях | AD78: рублей | AE78: 3828500 | AF78: 3828500 | AG78: 3701700 | AH78: 3701700 | AI78: 3701700 | AJ78: 3701700 | AK78: =AE78+AF78+AG78+AH78+AI78+AJ78 -> 22463800 | AL78: 2023-2028
B79: 8 | C79: 0 | D79: 5 | E79: 0 | F79: 7 | G79: 0 | H79: 2 | I79: 1 | J79: 7 | K79: 2 | L79: 0 | M79: 2 | N79: L | O79: 3 | P79: 0 | Q79: 4 | R79: 1 | S79: 1 | T79: 7 | U79: 2 | V79: 0 | W79: 2 | X79: 2 | Y79: 4 | Z79: 0 | AA79: 0 | AB79: 1 | AC79: Показатель 1. Доля обучающихся, получающих начальное общее образование в государственных и муниципальных образовательных организациях, получающих бесплатное горячее питание, к общему количеству обучающихся, получающих начальное общее образование в государственных и муниципальных образовательных организациях. | AD79: % | AE79: 100 | AF79: 100 | AG79: 100 | AH79: 100 | AI79: 100 | AJ79: 100 | AK79: 100 | AL79: 2023-2028
B80: 8 | C80: 0 | D80: 5 | E80: 0 | F80: 7 | G80: 0 | H80: 2 | I80: 1 | J80: 7 | K80: 2 | L80: 0 | M80: 2 | N80: 2 | O80: 0 | P80: 2 | Q80: 5 | R80: 0 | S80: 1 | T80: 7 | U80: 2 | V80: 0 | W80: 2 | X80: 2 | Y80: 5 | Z80: 0 | AA80: 0 | AB80: 0 | AC80: Мероприятие 2.5.Субвенции на выплату ежемесячного денежного вознаграждения за классное руководство педагогическим работникам муниципальных образовательных организаций | AD80: рублей | AE80: 4827000 | AF80: 4827000 | AG80: 4827000 | AH80: 4827000 | AI80: 4827000 | AJ80: 4827000 | AK80: =AE80+AF80+AG80+AH80+AI80+AJ80 -> 28962000 | AL80: 2023-2028
B81: 8 | C81: 0 | D81: 5 | E81: 0 | F81: 7 | G81: 0 | H81: 2 | I81: 1 | J81: 7 | K81: 2 | L81: 0 | M81: 2 | N81: 2 | O81: 0 | P81: 2 | Q81: 5 | R81: 0 | S81: 1 | T81: 7 | U81: 2 | V81: 0 | W81: 2 | X81: 2 | Y81: 5 | Z81: 0 | AA81: 0 | AB81: 1 | AC81: Показатель1. Количество педагогов , получившихвознаграждение за счет субсидии | AD81: чел. | AF81: 63 | AG81: 63 | AH81: 63 | AI81: 63 | AJ81: 63 | AK81: 63 | AL81: 2023-2028
B82: 8 | C82: 0 | D82: 5 | E82: 0 | F82: 7 | G82: 0 | H82: 2 | I82: 1 | J82: 7 | K82: 2 | L82: 0 | M82: 2 | N82: 2 | O82: 0 | P82: 2 | Q82: 6 | R82: 0 | S82: 1 | T82: 7 | U82: 2 | V82: 0 | W82: 2 | X82: 2 | Y82: 6 | Z82: 0 | AA82: 0 | AB82: 0 | AC82: Мероприятие 2.6. Реализация национального проекта « Образование» в общеобразовательных организациях Весьегонского муниципального округа | AD82: да - 1, нет — 0 | AE82: 1 | AF82: 1 | AG82: 1 | AH82: 1 | AI82: 1 | AJ82: 1 | AK82: 1 | AL82: 2023-2028
B83: 8 | C83: 0 | D83: 5 | E83: 0 | F83: 7 | G83: 0 | H83: 2 | I83: 1 | J83: 7 | K83: 2 | L83: 0 | M83: 2 | N83: 2 | O83: 0 | P83: 2 | Q83: 6 | R83: 0 | S83: 1 | T83: 7 | U83: 2 | V83: 0 | W83: 2 | X83: 2 | Y83: 6 | Z83: 0 | AA83: 0 | AB83: 1 | AC83: Показатель 1. Участие в проекте по направлению «Современная школа» | AD83: да - 1, нет — 0 | AE83: 1 | AF83: 1 | AG83: 1 | AH83: 1 | AI83: 1 | AJ83: 1 | AK83: 1 | AL83: 2023-2028
B84: 8 | C84: 0 | D84: 5 | E84: 0 | F84: 7 | G84: 0 | H84: 2 | I84: 1 | J84: 7 | K84: 2 | L84: 0 | M84: 2 | N84: 2 | O84: 0 | P84: 2 | Q84: 6 | R84: 0 | S84: 1 | T84: 7 | U84: 2 | V84: 0 | W84: 2 | X84: 2 | Y84: 6 | Z84: 0 | AA84: 0 | AB84: 2 | AC84: Показатель 2. Участие в проекте по направлению « Успех каждого ребенка» | AD84: да - 1, нет — 0 | AE84: 1 | AF84: 1 | AG84: 1 | AH84: 1 | AI84: 1 | AJ84: 1 | AK84: 1 | AL84: 2023-2028
B85: 8 | C85: 0 | D85: 5 | E85: 0 | F85: 7 | G85: 0 | H85: 2 | I85: 1 | J85: 7 | K85: 2 | L85: 0 | M85: 2 | N85: 2 | O85: 0 | P85: 2 | Q85: 6 | R85: 0 | S85: 1 | T85: 7 | U85: 2 | V85: 0 | W85: 2 | X85: 2 | Y85: 6 | Z85: 0 | AA85: 0 | AB85: 3 | AC85: Показатель 3. Участие в проекте по направлению « Цифровая образовательная среда | AD85: да - 1, нет — 0 | AE85: 1 | AF85: 1 | AG85: 1 | AH85: 1 | AI85: 1 | AJ85: 1 | AK85: 1 | AL85: 2023-2028
B86: 8 | C86: 0 | D86: 5 | E86: 0 | F86: 7 | G86: 0 | H86: 2 | I86: 1 | J86: 7 | K86: 2 | L86: 0 | M86: 2 | N86: 2 | O86: 0 | P86: 2 | Q86: 6 | R86: 0 | S86: 1 | T86: 7 | U86: 2 | V86: 0 | W86: 2 | X86: 2 | Y86: 6 | Z86: 0 | AA86: 0 | AB86: 4 | AC86: Показатель 4. Участие в проекте по направлению «Учитель будущего» | AD86: да - 1, нет — 0 | AE86: 1 | AF86: 1 | AG86: 1 | AH86: 1 | AI86: 1 | AJ86: 1 | AK86: 1 | AL86: 2023-2028
B87: 8 | C87: 0 | D87: 5 | E87: 0 | F87: 7 | G87: 0 | H87: 2 | I87: 1 | J87: 7 | K87: 2 | L87: 0 | M87: 2 | N87: 2 | O87: 0 | P87: 2 | Q87: 6 | R87: 0 | S87: 1 | T87: 7 | U87: 2 | V87: 0 | W87: 2 | X87: 2 | Y87: 6 | Z87: 0 | AA87: 0 | AB87: 5 | AC87: Показатель 5. Участие в проекте по направлению «Социальная активность обучающихся» и "Патриотическое воспитание" | AD87: да - 1, нет — 0 | AE87: 1 | AF87: 1 | AG87: 1 | AH87: 1 | AI87: 1 | AJ87: 1 | AK87: 1 | AL87: 2023-2028
B88: 8 | C88: 0 | D88: 5 | E88: 0 | F88: 7 | G88: 0 | H88: 2 | I88: 1 | J88: 7 | K88: 2 | L88: 0 | M88: 2 | N88: 2 | O88: 0 | P88: 2 | Q88: 6 | R88: 0 | S88: 1 | T88: 7 | U88: 2 | V88: 0 | W88: 2 | X88: 2 | Y88: 6 | Z88: 0 | AA88: 0 | AB88: 6 | AC88: Показатель 6. Участие в проекте по направлению «Содействие в оказании помощи семьям, имеющим детей» | AD88: да - 1, нет — 0 | AE88: 1 | AF88: 1 | AG88: 1 | AH88: 1 | AI88: 1 | AJ88: 1 | AK88: 1 | AL88: 2023-2028
B89: 8 | C89: 0 | D89: 5 | E89: 0 | F89: 7 | G89: 0 | H89: 2 | I89: 1 | J89: 7 | K89: 2 | L89: E | M89: B | N89: 5 | O89: 1 | P89: 7 | Q89: 9 | R89: 0 | S89: 1 | T89: 7 | U89: 2 | V89: 0 | W89: 2 | X89: 2 | Y89: 7 | Z89: 0 | AA89: 0 | AB89: 0 | AC89: Мероприятие 2.7. Субвенции местным бюджетам на проведение мероприятий по обеспечению деятельности советников директора по воспитанию и взаимодействию с детскими общественными объединениями в общеобразовательных организациях | AD89: рублей | AE89: 228500 | AF89: 675700 | AG89: 675700 | AH89: 675700 | AI89: 675700 | AJ89: 675700 | AK89: =AE89+AF89+AG89+AH89+AI89+AJ89 -> 3607000 | AL89: 2023-2028
B90: 8 | C90: 0 | D90: 5 | E90: 0 | F90: 7 | G90: 0 | H90: 2 | I90: 1 | J90: 7 | K90: 2 | L90: E | M90: B | N90: 5 | O90: 1 | P90: 7 | Q90: 9 | R90: 0 | S90: 1 | T90: 7 | U90: 2 | V90: 0 | W90: 2 | X90: 2 | Y90: 7 | Z90: 0 | AA90: 0 | AB90: 0 | AC90: Показатель 1 Количество советников директора по воспитанию | AD90: чел. | AE90: 4 | AF90: 4 | AG90: 4 | AH90: 4 | AI90: 4 | AJ90: 4 | AK90: 4 | AL90: 2023-2028
B91: 8 | C91: 0 | D91: 5 | E91: 0 | F91: 7 | G91: 0 | H91: 2 | I91: 1 | J91: 7 | K91: 2 | L91: 0 | M91: 3 | N91: 0 | O91: 0 | P91: 0 | Q91: 0 | R91: 0 | S91: 1 | T91: 7 | U91: 2 | V91: 0 | W91: 3 | X91: 0 | Y91: 0 | Z91: 0 | AA91: 0 | AB91: 0 | AC91: Задача 3. Предоставление общедоступного и бесплатного общего, основного общего, среднего (полного) общего образования по основным образовательным программам муниципальными общеобразовательными организациями Весьегонского муниципального округа Тверской области | AD91: рублей | AE91: =AE105+AE110+AE117+AE126+AE129 -> 34442800 | AF91: =AF105+AF110+AF117+AF126+AF129 -> 28286735 | AG91: 26914270 | AH91: 26914270 | AI91: 26914270 | AJ91: 26914270 | AK91: 170386615 | AL91: 2023-2028
B92: 8 | C92: 0 | D92: 5 | E92: 0 | F92: 7 | G92: 0 | H92: 2 | I92: 1 | J92: 7 | K92: 2 | L92: 0 | M92: 3 | N92: 0 | O92: 0 | P92: 0 | Q92: 0 | R92: 0 | S92: 1 | T92: 7 | U92: 2 | V92: 0 | W92: 3 | X92: 0 | Y92: 0 | Z92: 0 | AA92: 0 | AB92: 1 | AC92: Показатель 1. Уровень удовлетворенности населения качеством предоставляемых услуг общего образования | AD92: % | AE92: 89 | AF92: 89 | AG92: 90 | AH92: 90 | AI92: 90 | AJ92: 90 | AK92: 90 | AL92: 2023-2028
B93: 8 | C93: 0 | D93: 5 | E93: 0 | F93: 7 | G93: 0 | H93: 2 | I93: 1 | J93: 7 | K93: 2 | L93: 0 | M93: 3 | N93: 0 | O93: 0 | P93: 0 | Q93: 0 | R93: 0 | S93: 1 | T93: 7 | U93: 2 | V93: 0 | W93: 3 | X93: 0 | Y93: 0 | Z93: 0 | AA93: 0 | AB93: 2 | AC93: Показатель 2. Переход на государственные образовательные стандарты начального и основного общего образования | AD93: да - 1, нет - 0 | AE93: 1 | AF93: 1 | AG93: 1 | AH93: 1 | AI93: 1 | AJ93: 1 | AK93: 1 | AL93: 2023-2028
B94: 8 | C94: 0 | D94: 5 | E94: 0 | F94: 7 | G94: 0 | H94: 2 | I94: 1 | J94: 7 | K94: 2 | L94: 0 | M94: 3 | N94: 0 | O94: 0 | P94: 0 | Q94: 0 | R94: 0 | S94: 1 | T94: 7 | U94: 2 | V94: 0 | W94: 3 | X94: 0 | Y94: 0 | Z94: 0 | AA94: 0 | AB94: 3 | AC94: Показатель 3.Доля общеобразовательных организаций, перешедших на новые государственные образовательные стандарты. | AD94: % | AE94: 100 | AF94: 100 | AG94: 100 | AH94: 100 | AI94: 100 | AJ94: 100 | AK94: 100 | AL94: 2023-2028
B95: 8 | C95: 0 | D95: 5 | E95: 0 | F95: 7 | G95: 0 | H95: 2 | I95: 1 | J95: 7 | K95: 2 | L95: 0 | M95: 3 | N95: 0 | O95: 0 | P95: 0 | Q95: 0 | R95: 0 | S95: 1 | T95: 7 | U95: 2 | V95: 0 | W95: 3 | X95: 0 | Y95: 0 | Z95: 0 | AA95: 0 | AB95: 4 | AC95: Показатель 4. Отношение среднего балла единого государственного экзамена (в расчете на 1 предмет) в школе с лучшими результатами единого государственного экзамена к среднему баллу единого государственного экзамена (в расчете на 1 предмет) в школе с худшими результатами единого государственного экзамена | AD95: % | AE95: 0.8 | AF95: 0.85 | AG95: 0.85 | AH95: 0.85 | AI95: 0.85 | AJ95: 0.85 | AK95: 0.85 | AL95: 2023-2028
B96: 8 | C96: 0 | D96: 5 | E96: 0 | F96: 7 | G96: 0 | H96: 2 | I96: 1 | J96: 7 | K96: 2 | L96: 0 | M96: 3 | N96: 0 | O96: 0 | P96: 0 | Q96: 0 | R96: 0 | S96: 1 | T96: 7 | U96: 2 | V96: 0 | W96: 3 | X96: 0 | Y96: 0 | Z96: 0 | AA96: 0 | AB96: 5 | AC96: Показатель 5. Наличие плана мероприятий ( "дорожной карты") развития математического образования в муниципалитете и поддержке школ, получивших низкий баллы на итоговой аттестации | AD96: да - 1, нет - 0 | AE96: 1 | AF96: 1 | AG96: 1 | AH96: 1 | AI96: 1 | AJ96: 1 | AK96: 1 | AL96: 2023-2028
B97: 8 | C97: 0 | D97: 5 | E97: 0 | F97: 7 | G97: 0 | H97: 2 | I97: 1 | J97: 7 | K97: 2 | L97: 0 | M97: 3 | N97: 2 | O97: 0 | P97: 3 | Q97: 1 | R97: 0 | S97: 1 | T97: 7 | U97: 2 | V97: 0 | W97: 3 | X97: 3 | Y97: 1 | Z97: 0 | AA97: 0 | AB97: 0 | AC97: Мероприятие 3.1.Создание условий для обучения детей – инвалидов и детей с ОВЗ. Создание условий для модернизации общеобразовательных учреждений путем организации в них дистанционного обучения обучающихся | AD97: рублей | AE97: 0 | AF97: 0 | AG97: 0 | AH97: 0 | AI97: 0 | AJ97: 0 | AK97: 0 | AL97: 2023-2028
B98: 8 | C98: 0 | D98: 5 | E98: 0 | F98: 7 | G98: 0 | H98: 2 | I98: 1 | J98: 7 | K98: 2 | L98: 0 | M98: 3 | N98: 2 | O98: 0 | P98: 3 | Q98: 1 | R98: 0 | S98: 1 | T98: 7 | U98: 2 | V98: 0 | W98: 3 | X98: 3 | Y98: 1 | Z98: 0 | AA98: 0 | AB98: 1 | AC98: Показатель 1. Доля общеобразовательных учреждений, имеющих доступную среду для детей –инвалидов и детей с ОВЗ | AD98: % | AE98: 50 | AF98: 60 | AG98: 60 | AH98: 60 | AI98: 70 | AJ98: 70 | AK98: 70 | AL98: 2023-2028
B99: 8 | C99: 0 | D99: 5 | E99: 0 | F99: 7 | G99: 0 | H99: 2 | I99: 1 | J99: 7 | K99: 2 | L99: 0 | M99: 3 | N99: 2 | O99: 0 | P99: 3 | Q99: 1 | R99: 0 | S99: 1 | T99: 7 | U99: 2 | V99: 0 | W99: 3 | X99: 3 | Y99: 1 | Z99: 0 | AA99: 0 | AB99: 2 | AC99: Показатель2. Доля общеобразовательных организаций, предоставляющих услуги дистанционного образования | AD99: % | AE99: 50 | AF99: 50 | AG99: 50 | AH99: 50 | AI99: 50 | AJ99: 50 | AK99: 50 | AL99: 2023-2028
B100: 8 | C100: 0 | D100: 5 | E100: 0 | F100: 7 | G100: 0 | H100: 2 | I100: 1 | J100: 7 | K100: 2 | L100: 0 | M100: 3 | N100: 2 | O100: 0 | P100: 3 | Q100: 1 | R100: 0 | S100: 1 | T100: 7 | U100: 2 | V100: 0 | W100: 3 | X100: 3 | Y100: 1 | Z100: 0 | AA100: 0 | AB100: 3 | AC100: Показатель 3.Обеспечение информационного взаимодействия образовательных учреждений района с целью создания единой информационной среды, предназначенной для формирования методических и справочных электронных ресурсов по вопросам ФГОС ООО. | AD100: да - 1, нет - 0 | AE100: 1 | AF100: 1 | AG100: 1 | AH100: 1 | AI100: 1 | AJ100: 1 | AK100: 1 | AL100: 2023-2028
B101: 8 | C101: 0 | D101: 5 | E101: 0 | F101: 7 | G101: 0 | H101: 2 | I101: 1 | J101: 7 | K101: 2 | L101: 0 | M101: 3 | N101: 2 | O101: 0 | P101: 3 | Q101: 1 | R101: 0 | S101: 1 | T101: 7 | U101: 2 | V101: 0 | W101: 3 | X101: 3 | Y101: 1 | Z101: 0 | AA101: 0 | AB101: 4 | AC101: Показатель 4.Доля образовательных организаций, вовлеченных в единую информационную среду | AD101: % | AE101: 100 | AF101: 100 | AG101: 100 | AH101: 100 | AI101: 100 | AJ101: 100 | AK101: 100 | AL101: 2023-2028
B102: 8 | C102: 0 | D102: 5 | E102: 0 | F102: 7 | G102: 0 | H102: 2 | I102: 1 | J102: 7 | K102: 2 | L102: 0 | M102: 3 | N102: 2 | O102: 0 | P102: 3 | Q102: 1 | R102: 0 | S102: 1 | T102: 7 | U102: 2 | V102: 0 | W102: 3 | X102: 3 | Y102: 1 | Z102: 0 | AA102: 0 | AB102: 5 | AC102: Показатель 5. Совершенствование муниципальной системы мониторинга уровня подготовки и социализации школьников | AD102: да - 1, нет - 0 | AE102: 1 | AF102: 1 | AG102: 1 | AH102: 1 | AI102: 1 | AJ102: 1 | AK102: 1 | AL102: 2023-2028
B103: 8 | C103: 0 | D103: 5 | E103: 0 | F103: 7 | G103: 0 | H103: 2 | I103: 1 | J103: 7 | K103: 2 | L103: 0 | M103: 3 | N103: 2 | O103: 0 | P103: 3 | Q103: 1 | R103: 0 | S103: 1 | T103: 7 | U103: 2 | V103: 0 | W103: 3 | X103: 3 | Y103: 1 | Z103: 0 | AA103: 0 | AB103: 6 | AC103: Показатель 6. Разработка и реализация муниципальных мероприятий поддержки школ, работающих в сложных социальных условиях | AD103: да - 1, нет - 0 | AE103: 1 | AF103: 1 | AG103: 1 | AH103: 1 | AI103: 1 | AJ103: 1 | AK103: 1 | AL103: 2023-2028
B104: 8 | C104: 0 | D104: 5 | E104: 0 | F104: 7 | G104: 0 | H104: 2 | I104: 1 | J104: 7 | K104: 2 | L104: 0 | M104: 3 | N104: 2 | O104: 0 | P104: 3 | Q104: 1 | R104: 0 | S104: 1 | T104: 7 | U104: 2 | V104: 0 | W104: 3 | X104: 3 | Y104: 1 | Z104: 0 | AA104: 0 | AB104: 7 | AC104: Показатель 7. Доля общеобразовательных организаций Весьегонского муниципального округа Тверской области, в которых оценка деятельности общеобразовательных организаций, их руководителей и основных категорий работников осуществляется на основании показателей эффективности деятельности | AD104: % | AE104: 100 | AF104: 100 | AG104: 100 | AH104: 100 | AI104: 100 | AJ104: 100 | AK104: 100 | AL104: 2023-2028
B105: 8 | C105: 0 | D105: 5 | E105: 0 | F105: 7 | G105: 0 | H105: 2 | I105: 1 | J105: 7 | K105: 2 | L105: 0 | M105: 3 | N105: 2 | O105: 0 | P105: 3 | Q105: 2 | R105: 0 | S105: 1 | T105: 7 | U105: 2 | V105: 0 | W105: 3 | X105: 3 | Y105: 2 | Z105: 0 | AA105: 0 | AB105: 0 | AC105: Мероприятие 3.2. Обеспечение деятельности общеобразовательных организаций | AD105: рублей | AE105: 28707377 | AF105: 21873962 | AG105: 20501497 | AH105: 20501497 | AI105: 20501497 | AJ105: 20501497 | AK105: =AE105+AF105+AG105+AH105+AI105+AJ105 -> 132587327 | AL105: 2023-2028
B106: 8 | C106: 0 | D106: 5 | E106: 0 | F106: 7 | G106: 0 | H106: 2 | I106: 1 | J106: 7 | K106: 2 | L106: 0 | M106: 3 | N106: 2 | O106: 0 | P106: 3 | Q106: 2 | R106: 0 | S106: 1 | T106: 7 | U106: 2 | V106: 0 | W106: 3 | X106: 3 | Y106: 2 | Z106: 0 | AA106: 0 | AB106: 1 | AC106: Показатель 1. Доля общеобразовательных организаций, в которых оценка деятельности всех категорий работников осуществляется на основании показателей эффективности деятельности | AD106: % | AE106: 100 | AF106: 100 | AG106: 100 | AH106: 100 | AI106: 100 | AJ106: 100 | AK106: 100 | AL106: 2023-2028
B107: 8 | C107: 0 | D107: 5 | E107: 0 | F107: 7 | G107: 0 | H107: 2 | I107: 1 | J107: 7 | K107: 2 | L107: 0 | M107: 3 | N107: 2 | O107: 0 | P107: 3 | Q107: 2 | R107: 0 | S107: 1 | T107: 7 | U107: 2 | V107: 0 | W107: 3 | X107: 3 | Y107: 2 | Z107: 0 | AA107: 0 | AB107: 2 | AC107: Показатель 2. Наличие кредиторской задолженности | AD107: да - 1, нет - 0 | AE107: 1 | AF107: 0 | AG107: 0 | AH107: 0 | AI107: 0 | AJ107: 0 | AK107: 0 | AL107: 2023-2028
B108: 8 | C108: 0 | D108: 5 | E108: 0 | F108: 7 | G108: 0 | H108: 2 | I108: 1 | J108: 7 | K108: 2 | L108: 0 | M108: 3 | N108: 2 | O108: 0 | P108: 3 | Q108: 2 | R108: 0 | S108: 1 | T108: 7 | U108: 2 | V108: 0 | W108: 3 | X108: 3 | Y108: 2 | Z108: 0 | AA108: 0 | AB108: 3 | AC108: Показатель 3.Корректировка показателей качества профессиональной деятельности педагогических и работников муниципальных общеобразовательных организаций. Корректировка коллективных, трудовых договоров, должностных инструкций для муниципальных общеобразовательных организаций | AD108: да - 1, нет - 0 | AE108: 1 | AF108: 1 | AG108: 1 | AH108: 1 | AI108: 1 | AJ108: 1 | AK108: 1 | AL108: 2023-2028
B109: 8 | C109: 0 | D109: 5 | E109: 0 | F109: 7 | G109: 0 | H109: 2 | I109: 1 | J109: 7 | K109: 2 | L109: 0 | M109: 3 | N109: 2 | O109: 0 | P109: 3 | Q109: 2 | R109: 0 | S109: 1 | T109: 7 | U109: 2 | V109: 0 | W109: 3 | X109: 3 | Y109: 2 | Z109: 0 | AA109: 0 | AB109: 4 | AC109: Показатель 4. Доля молодых специалистов и педагогических работников до 30 лет | AD109: % | AE109: 10 | AF109: 10 | AG109: 10 | AH109: 11 | AI109: 12 | AJ109: 12 | AK109: 12 | AL109: 2023-2028
B110: 8 | C110: 0 | D110: 5 | E110: 0 | F110: 7 | G110: 0 | H110: 2 | I110: 1 | J110: 7 | K110: 2 | L110: 0 | M110: 3 | N110: S | O110: 0 | P110: 2 | Q110: 5 | R110: 0 | S110: 1 | T110: 7 | U110: 2 | V110: 0 | W110: 3 | X110: 3 | Y110: 3 | Z110: 0 | AA110: 0 | AB110: 0 | AC110: Мероприятие 3.3. Создание условий для предоставления транспортных услуг населению в организации транспортного обслуживания населения в границах муниципального образования в части обеспечения подвоза учащихся, проживающих в сельской местности, к месту обучения и обратно за счет средств ме стного бюджета | AD110: рублей | AE110: 4274223 | AF110: 4952773 | AG110: 4952773 | AH110: 4952773 | AI110: 4952773 | AJ110: 4952773 | AK110: =AE110+AF110+AG110+AH110+AI110+AJ110 -> 29038088 | AL110: 2023-2028
B111: 8 | C111: 0 | D111: 5 | E111: 0 | F111: 7 | G111: 0 | H111: 2 | I111: 1 | J111: 7 | K111: 2 | L111: 0 | M111: 3 | N111: S | O111: 0 | P111: 2 | Q111: 5 | R111: 0 | S111: 1 | T111: 7 | U111: 2 | V111: 0 | W111: 3 | X111: 3 | Y111: 3 | Z111: 0 | AA111: 0 | AB111: 1 | AC111: Показатель 1 Доля охвата подвоза к месту обучения и обратно обучающихся, проживающих в сельской местности | AD111: % | AE111: 100 | AF111: 100 | AG111: 100 | AH111: 100 | AI111: 100 | AJ111: 100 | AK111: 100 | AL111: 2023-2028
B112: 8 | C112: 0 | D112: 5 | E112: 0 | F112: 7 | G112: 0 | H112: 2 | I112: 1 | J112: 7 | K112: 2 | L112: 0 | M112: 3 | N112: S | O112: 0 | P112: 2 | Q112: 5 | R112: 0 | S112: 1 | T112: 7 | U112: 2 | V112: 0 | W112: 3 | X112: 3 | Y112: 3 | Z112: 0 | AA112: 0 | AB112: 2 | AC112: Показатель 2 Соответствие автобусов для подвоза учащихся, проживающих в сельской местности, к месту обучения и обратно ГОСТ 33552-2015 «Автобусы для перевозки детей. Технические требования и методы испытаний», наличие лицензии на организацию перевозок. | AD112: % | AE112: 100 | AF112: 100 | AG112: 100 | AH112: 100 | AI112: 100 | AJ112: 100 | AK112: 100 | AL112: 2023-2028
B113: 8 | C113: 0 | D113: 5 | E113: 0 | F113: 7 | G113: 0 | H113: 2 | I113: 1 | J113: 7 | K113: 2 | L113: 0 | M113: 3 | N113: S | O113: 0 | P113: 2 | Q113: 5 | R113: 0 | S113: 1 | T113: 7 | U113: 2 | V113: 0 | W113: 3 | X113: 3 | Y113: 3 | Z113: 0 | AA113: 0 | AB113: 3 | AC113: Показатель 3. Оснащение автобусов для подвоза учащихся, проживающих в сельской местности, к месту обучения и обратно на основании постановления Правительства российской Федерации от 25. 08. 2008 № 641 аппаратурой спутниковой навигации ГЛОНАСС /GPS | AD113: % | AE113: 100 | AF113: 100 | AG113: 100 | AH113: 100 | AI113: 100 | AJ113: 100 | AK113: 100 | AL113: 2023-2028
B114: 8 | C114: 0 | D114: 5 | E114: 0 | F114: 7 | G114: 0 | H114: 2 | I114: 1 | J114: 7 | K114: 2 | L114: 0 | M114: 3 | N114: S | O114: 0 | P114: 2 | Q114: 5 | R114: 0 | S114: 1 | T114: 7 | U114: 2 | V114: 0 | W114: 3 | X114: 3 | Y114: 3 | Z114: 0 | AA114: 0 | AB114: 4 | AC114: Показатель 4. Оснащение автобусов для подвоза учащихся, проживающих в сельской местности, к месту обучения и обратно тахографами на основании приказа Министерства транспорта Российской Федерации от 26.10.2020 № 438 | AD114: % | AE114: 100 | AF114: 100 | AG114: 100 | AH114: 100 | AI114: 100 | AJ114: 100 | AK114: 100 | AL114: 2023-2028
B115: 8 | C115: 0 | D115: 5 | E115: 0 | F115: 7 | G115: 0 | H115: 2 | I115: 1 | J115: 7 | K115: 2 | L115: 0 | M115: 3 | N115: S | O115: 0 | P115: 2 | Q115: 5 | R115: 0 | S115: 1 | T115: 7 | U115: 2 | V115: 0 | W115: 3 | X115: 3 | Y115: 3 | Z115: 0 | AA115: 0 | AB115: 5 | AC115: Показатель 5. Оснащение автобусов для подвоза учащихся, проживающих в сельской местности , к месту обучения и обратно видеорегистраторами | AD115: % | AE115: 100 | AF115: 100 | AG115: 100 | AH115: 100 | AI115: 100 | AJ115: 100 | AK115: 100 | AL115: 2023-2028
B116: 8 | C116: 0 | D116: 5 | E116: 0 | F116: 7 | G116: 0 | H116: 2 | I116: 1 | J116: 7 | K116: 2 | L116: 0 | M116: 3 | N116: S | O116: 0 | P116: 2 | Q116: 5 | R116: 0 | S116: 1 | T116: 7 | U116: 2 | V116: 0 | W116: 3 | X116: 3 | Y116: 3 | Z116: 0 | AA116: 0 | AB116: 6 | AC116: Показатель 6.Использование автобусов не старше 10 лет с начала эксплуатации | AD116: % | AE116: 100 | AF116: 100 | AG116: 100 | AH116: 100 | AI116: 100 | AJ116: 100 | AK116: 100 | AL116: 2023-2028
B117: 8 | C117: 0 | D117: 5 | E117: 0 | F117: 7 | G117: 0 | H117: 2 | I117: 1 | J117: 7 | K117: 2 | L117: 0 | M117: 3 | N117: 1 | O117: 0 | P117: 2 | Q117: 5 | R117: 0 | S117: 1 | T117: 7 | U117: 2 | V117: 0 | W117: 3 | X117: 3 | Y117: 4 | Z117: 0 | AA117: 0 | AB117: 0 | AC117: Мероприятие 3.4. Субсидии на создание условий для предоставления транспортных услуг населению и организации транспортного обслуживания населения в границах муниципального образования в части обеспечения подвоза учащихся, проживающих в сельской местности, к месту обучения и обратно | AD117: рублей | AE117: 1341200 | AF117: 1341200 | AG117: 1341200 | AH117: 1341200 | AI117: 1341200 | AJ117: 1341200 | AK117: =AE117+AF117+AG117+AH117+AI117+AJ117 -> 8047200 | AL117: 2023-2028
B118: 8 | C118: 0 | D118: 5 | E118: 0 | F118: 7 | G118: 0 | H118: 2 | I118: 1 | J118: 7 | K118: 2 | L118: 0 | M118: 3 | N118: 1 | O118: 0 | P118: 2 | Q118: 5 | R118: 0 | S118: 1 | T118: 7 | U118: 2 | V118: 0 | W118: 3 | X118: 3 | Y118: 4 | Z118: 0 | AA118: 0 | AB118: 1 | AC118: Показатель 1 Доля охвата подвоза к месту обучения и обратно обучающихся, проживающих в сельской местности | AD118: % | AE118: 100 | AF118: 100 | AG118: 100 | AH118: 100 | AI118: 100 | AJ118: 100 | AK118: 100 | AL118: 2023-2028
B119: 8 | C119: 0 | D119: 5 | E119: 0 | F119: 7 | G119: 0 | H119: 2 | I119: 1 | J119: 7 | K119: 2 | L119: 0 | M119: 3 | N119: 1 | O119: 0 | P119: 2 | Q119: 5 | R119: 0 | S119: 1 | T119: 7 | U119: 2 | V119: 0 | W119: 3 | X119: 3 | Y119: 4 | Z119: 0 | AA119: 0 | AB119: 2 | AC119: Показатель2 Соответствие автобусов для подвоза учащихся, проживающих в сельской местности, к месту обучения и обратно ГОСТ 33552-2015 «Автобусы для перевозки детей. Технические требования и методы испытаний», наличие лицензии на организацию перевозок. | AD119: % | AE119: 100 | AF119: 100 | AG119: 100 | AH119: 100 | AI119: 100 | AJ119: 100 | AK119: 100 | AL119: 2023-2028
B120: 8 | C120: 0 | D120: 5 | E120: 0 | F120: 7 | G120: 0 | H120: 2 | I120: 1 | J120: 7 | K120: 2 | L120: 0 | M120: 3 | N120: 1 | O120: 0 | P120: 2 | Q120: 5 | R120: 0 | S120: 1 | T120: 7 | U120: 2 | V120: 0 | W120: 3 | X120: 3 | Y120: 4 | Z120: 0 | AA120: 0 | AB120: 3 | AC120: Показатель 3. Оснащение автобусов для подвоза учащихся, проживающих в сельской местности, к месту обучения и обратно на основании постановления Правительства российской Федерации от 25. 08. 2008 № 641 аппаратурой спутниковой навигации ГЛОНАСС /GPS | AD120: % | AE120: 100 | AF120: 100 | AG120: 100 | AH120: 100 | AI120: 100 | AJ120: 100 | AK120: 100 | AL120: 2023-2028
B121: 8 | C121: 0 | D121: 5 | E121: 0 | F121: 7 | G121: 0 | H121: 2 | I121: 1 | J121: 7 | K121: 2 | L121: 0 | M121: 3 | N121: 1 | O121: 0 | P121: 2 | Q121: 5 | R121: 0 | S121: 1 | T121: 7 | U121: 2 | V121: 0 | W121: 3 | X121: 3 | Y121: 4 | Z121: 0 | AA121: 0 | AB121: 4 | AC121: Показатель 4. Оснащение автобусов для подвоза учащихся, проживающих в сельской местности, к месту обучения и обратно тахографами на основании приказа Министерства транспорта Российской Федерации от 26.10.2020 № 438 | AD121: % | AE121: 100 | AF121: 100 | AG121: 100 | AH121: 100 | AI121: 100 | AJ121: 100 | AK121: 100 | AL121: 2023-2028
B122: 8 | C122: 0 | D122: 5 | E122: 0 | F122: 7 | G122: 0 | H122: 2 | I122: 1 | J122: 7 | K122: 2 | L122: 0 | M122: 3 | N122: 1 | O122: 0 | P122: 2 | Q122: 5 | R122: 0 | S122: 1 | T122: 7 | U122: 2 | V122: 0 | W122: 3 | X122: 3 | Y122: 4 | Z122: 0 | AA122: 0 | AB122: 5 | AC122: Показатель 5. Оснащение автобусов для подвоза учащихся, проживающих в сельской местности , к месту обучения и обратно видеорегистраторами | AD122: % | AE122: 100 | AF122: 100 | AG122: 100 | AH122: 100 | AI122: 100 | AJ122: 100 | AK122: 100 | AL122: 2023-2028
B123: 8 | C123: 0 | D123: 5 | E123: 0 | F123: 7 | G123: 0 | H123: 2 | I123: 1 | J123: 7 | K123: 2 | L123: 0 | M123: 3 | N123: 1 | O123: 0 | P123: 2 | Q123: 5 | R123: 0 | S123: 1 | T123: 7 | U123: 2 | V123: 0 | W123: 3 | X123: 3 | Y123: 4 | Z123: 0 | AA123: 0 | AB123: 6 | AC123: Показатель 6. Использование автобусов не старше 10 лет с начала эксплуатации | AD123: % | AE123: 100 | AF123: 100 | AG123: 100 | AH123: 100 | AI123: 100 | AJ123: 100 | AK123: 100 | AL123: 2023-2028
B124: 8 | C124: 0 | D124: 5 | E124: 0 | F124: 7 | G124: 0 | H124: 2 | I124: 1 | J124: 7 | K124: 2 | L124: 0 | M124: 3 | N124: 2 | O124: 0 | P124: 3 | Q124: 5 | R124: 0 | S124: 1 | T124: 7 | U124: 2 | V124: 0 | W124: 3 | X124: 3 | Y124: 5 | Z124: 0 | AA124: 0 | AB124: 0 | AC124: Мероприятие 3.5. Погашение просроченной кредиторской задолженности | AD124: рублей | AE124: 0 | AF124: 0 | AG124: 0 | AH124: 0 | AI124: 0 | AJ124: 0 | AK124: =AE124 -> 0 | AL124: 2023-2028
B125: 8 | C125: 0 | D125: 5 | E125: 0 | F125: 7 | G125: 0 | H125: 2 | I125: 1 | J125: 7 | K125: 2 | L125: 0 | M125: 3 | N125: 2 | O125: 0 | P125: 3 | Q125: 5 | R125: 0 | S125: 1 | T125: 7 | U125: 2 | V125: 0 | W125: 3 | X125: 3 | Y125: 5 | Z125: 0 | AA125: 0 | AB125: 1 | AC125: Показатель 1 Доля учреждений, погасивших кредиторскую задолженность | AD125: % | AE125: 100 | AF125: 100 | AG125: 100 | AH125: 100 | AI125: 100 | AJ125: 100 | AK125: 100 | AL125: 2023-2028
B126: 8 | C126: 0 | D126: 5 | E126: 0 | F126: 7 | G126: 0 | H126: 2 | I126: 1 | J126: 7 | K126: 2 | L126: 0 | M126: 3 | N126: 1 | O126: 1 | P126: 0 | Q126: 8 | R126: 0 | S126: 1 | T126: 7 | U126: 2 | V126: 0 | W126: 3 | X126: 3 | Y126: 6 | Z126: 0 | AA126: 0 | AB126: 0 | AC126: Мероприятие 3.6. Субсидии на организацию участия детей и подростков в социально значимых региональных проектах | AD126: рублей | AE126: 97800 | AF126: 97800 | AG126: 97800 | AH126: 97800 | AI126: 97800 | AJ126: 97800 | AK126: =AE126+AF126+AG126+AH126+AI126+AJ126 -> 586800 | AL126: 2023-2028
B127: 8 | C127: 0 | D127: 5 | E127: 0 | F127: 7 | G127: 0 | H127: 2 | I127: 1 | J127: 7 | K127: 2 | L127: 0 | M127: 3 | N127: 1 | O127: 1 | P127: 0 | Q127: 8 | R127: 0 | S127: 1 | T127: 7 | U127: 2 | V127: 0 | W127: 3 | X127: 3 | Y127: 6 | Z127: 0 | AA127: 0 | AB127: 1 | AC127: Показатель 1. Доля обучающихся 8 классов муниципальных общеобразовательных организаций принявших участие в социально значимых региональных проектах | AD127: % | AE127: 100 | AF127: 100 | AG127: 100 | AH127: 100 | AI127: 100 | AJ127: 100 | AK127: =AE127 -> 100 | AL127: 2023-2028
B128: 8 | C128: 0 | D128: 5 | E128: 0 | F128: 7 | G128: 0 | H128: 2 | I128: 1 | J128: 7 | K128: 2 | L128: 0 | M128: 3 | N128: 2 | O128: 0 | P128: 3 | Q128: 7 | R128: 0 | S128: 1 | T128: 7 | U128: 2 | V128: 0 | W128: 3 | X128: 3 | Y128: 6 | Z128: 0 | AA128: 0 | AB128: 2 | AC128: Показатель 2. Доля обучающихся 7 классов муниципальных общеобразовательных организаций принявших участие в социально значимых региональных проектах | AD128: % | AE128: 100 | AF128: 100 | AG128: 100 | AH128: 100 | AI128: 100 | AJ128: 100 | AK128: =AE128 -> 100 | AL128: 2023-2028
B129: 8 | C129: 0 | D129: 5 | E129: 0 | F129: 7 | G129: 0 | H129: 2 | I129: 1 | J129: 7 | K129: 2 | L129: 0 | M129: 3 | N129: S | O129: 1 | P129: 0 | Q129: 8 | R129: 0 | S129: 1 | T129: 7 | U129: 2 | V129: 0 | W129: 3 | X129: 3 | Y129: 7 | Z129: 0 | AA129: 0 | AB129: 0 | AC129: Мероприятие 3.7. Софинансирование на организацию участия детей и подростков в социально значимых региональных проектах | AD129: рублей | AE129: 22200 | AF129: 21000 | AG129: 21000 | AH129: 21000 | AI129: 21000 | AJ129: 21000 | AK129: =AE129+AF129+AG129+AH129+AI129+AJ129 -> 127200 | AL129: 2023-2028
B130: 8 | C130: 0 | D130: 5 | E130: 0 | F130: 7 | G130: 0 | H130: 2 | I130: 1 | J130: 7 | K130: 2 | L130: 0 | M130: 3 | N130: S | O130: 1 | P130: 0 | Q130: 8 | R130: 0 | S130: 1 | T130: 7 | U130: 2 | V130: 0 | W130: 3 | X130: 3 | Y130: 7 | Z130: 0 | AA130: 0 | AB130: 1 | AC130: Показатель 1. Доля обучающихся 8 классов муниципальных общеобразовательных организаций принявших участие в социально значимых региональных проектах | AD130: % | AE130: 100 | AF130: 100 | AG130: 100 | AH130: 100 | AI130: 100 | AJ130: 100 | AK130: 100 | AL130: 2023-2028
B131: 8 | C131: 0 | D131: 5 | E131: 0 | F131: 7 | G131: 0 | H131: 2 | I131: 1 | J131: 7 | K131: 2 | L131: 0 | M131: 3 | N131: 2 | O131: 0 | P131: 3 | Q131: 9 | R131: 0 | S131: 1 | T131: 7 | U131: 2 | V131: 0 | W131: 3 | X131: 3 | Y131: 8 | Z131: 0 | AA131: 0 | AB131: 0 | AC131: Мероприятие 3.8. Субсидии на посещение центра "Россия - моя история" | AD131: рублей | AE131: 0 | AF131: 0 | AG131: 0 | AH131: 0 | AI131: 0 | AJ131: 0 | AK131: 0 | AL131: 2023-2028
B132: 8 | C132: 0 | D132: 5 | E132: 0 | F132: 7 | G132: 0 | H132: 2 | I132: 1 | J132: 7 | K132: 2 | L132: 0 | M132: 3 | N132: 2 | O132: 0 | P132: 3 | Q132: 9 | R132: 0 | S132: 1 | T132: 7 | U132: 2 | V132: 0 | W132: 3 | X132: 3 | Y132: 8 | Z132: 0 | AA132: 0 | AB132: 1 | AC132: Показатель 1. Доля обучающихся 7 классов муниципальных общеобразовательных организаций принявших участие в социально значимых региональных проектах | AD132: % | AE132: 100 | AF132: 100 | AG132: 100 | AH132: 100 | AI132: 100 | AJ132: 100 | AK132: 100 | AL132: 2023-2028
B133: 8 | C133: 0 | D133: 5 | E133: 0 | F133: 7 | G133: 0 | H133: 3 | I133: 1 | J133: 7 | K133: 3 | L133: 0 | M133: 0 | N133: 0 | O133: 0 | P133: 0 | Q133: 0 | R133: 0 | S133: 1 | T133: 7 | U133: 3 | V133: 0 | W133: 0 | X133: 0 | Y133: 0 | Z133: 0 | AA133: 0 | AB133: 0 | AC133: Подпрограмма 3 "Организация дополнительного образования детей" | AD133: рублей | AE133: =AE134+AE154+AE157 -> 8475202 | AF133: =AF134+AF154+AF157 -> 9282574 | AG133: 9012574 | AH133: 9012574 | AI133: 9012574 | AJ133: 9012574 | AK133: =AE133+AF133+AG133+AH133+AI133+AJ133 -> 53808072 | AL133: 2023-2028
B134: 8 | C134: 0 | D134: 5 | E134: 0 | F134: 7 | G134: 0 | H134: 3 | I134: 1 | J134: 7 | K134: 3 | L134: 0 | M134: 1 | N134: 0 | O134: 0 | P134: 0 | Q134: 0 | R134: 0 | S134: 1 | T134: 7 | U134: 3 | V134: 0 | W134: 1 | X134: 0 | Y134: 0 | Z134: 0 | AA134: 0 | AB134: 0 | AC134: Задача 1. Предоставление дополнительного образования муниципальными образовательными организациями | AD134: рублей | AE134: =AE136+AE143 -> 4875196 | AF134: =AF136+AF143 -> 5682568 | AG134: 5412568 | AH134: 5412568 | AI134: 5412568 | AJ134: 5412568 | AK134: 32182985 | AL134: 2023-2028
B135: 8 | C135: 0 | D135: 5 | E135: 0 | F135: 7 | G135: 0 | H135: 3 | I135: 1 | J135: 7 | K135: 3 | L135: 0 | M135: 1 | N135: 0 | O135: 0 | P135: 0 | Q135: 1 | R135: 1 | S135: 1 | T135: 7 | U135: 3 | V135: 0 | W135: 1 | X135: 1 | Y135: 1 | Z135: 0 | AA135: 0 | AB135: 1 | AC135: Показатель 1. Уровень удовлетворенности населения качеством предоставляемых услуг дополнительного образования . | AD135: % | AE135: 90 | AF135: 90 | AG135: 92 | AH135: 93 | AI135: 95 | AJ135: 95 | AK135: 95 | AL135: 2023-2028
B136: 8 | C136: 0 | D136: 5 | E136: 0 | F136: 7 | G136: 0 | H136: 3 | I136: 1 | J136: 7 | K136: 3 | L136: 0 | M136: 1 | N136: 2 | O136: 0 | P136: 1 | Q136: 1 | R136: 0 | S136: 1 | T136: 7 | U136: 3 | V136: 0 | W136: 1 | X136: 1 | Y136: 1 | Z136: 0 | AA136: 0 | AB136: 0 | AC136: Мероприятие 1.1.Обеспечение деятельности организаций дополнительного образования детей | AD136: рублей | AE136: 4836556 | AF136: 5643928 | AG136: 5373928 | AH136: 5373928 | AI136: 5373928 | AJ136: 5373928 | AK136: =AE136+AF136+AG136+AH136+AI136+AJ136 -> 31976196 | AL136: 2023-2028
B137: 8 | C137: 0 | D137: 5 | E137: 0 | F137: 7 | G137: 0 | H137: 3 | I137: 1 | J137: 7 | K137: 3 | L137: 0 | M137: 1 | N137: 2 | O137: 0 | P137: 1 | Q137: 1 | R137: 0 | S137: 1 | T137: 7 | U137: 3 | V137: 0 | W137: 1 | X137: 1 | Y137: 1 | Z137: 0 | AA137: 0 | AB137: 1 | AC137: Показатель 1. Доля организаций дополнительного образования, где введен эффективный контракт | AD137: % | AE137: 100 | AF137: 100 | AG137: 100 | AH137: 100 | AI137: 100 | AJ137: 100 | AK137: 100 | AL137: 2023-2028
B138: 8 | C138: 0 | D138: 5 | E138: 0 | F138: 7 | G138: 0 | H138: 3 | I138: 1 | J138: 7 | K138: 3 | L138: 0 | M138: 1 | N138: 2 | O138: 0 | P138: 1 | Q138: 1 | R138: 0 | S138: 1 | T138: 7 | U138: 3 | V138: 0 | W138: 1 | X138: 1 | Y138: 1 | Z138: 0 | AA138: 0 | AB138: 2 | AC138: Показатель. 2 Отношение среднемесячной заработной платы педагогических работников муниципальных организациях дополнительного образования к среднемесячной заработной плате организаций общего образования в Весьегонском муниципальном округе Тверской области | AD138: % | AE138: 90 | AF138: 90 | AG138: 90 | AH138: 90 | AI138: 90 | AJ138: 90 | AK138: 90 | AL138: 2023-2028
B139: 8 | C139: 0 | D139: 5 | E139: 0 | F139: 7 | G139: 0 | H139: 3 | I139: 1 | J139: 7 | K139: 3 | L139: 0 | M139: 1 | N139: 2 | O139: 0 | P139: 1 | Q139: 1 | R139: 0 | S139: 1 | T139: 7 | U139: 3 | V139: 0 | W139: 1 | X139: 1 | Y139: 1 | Z139: 0 | AA139: 0 | AB139: 3 | AC139: Показатель 3. Доля организаций дополнительного образования, в которых оценка деятельности всех категорий работников осуществляется на основании показателей эффективности деятельности | AD139: % | AE139: 100 | AF139: 100 | AG139: 100 | AH139: 100 | AI139: 100 | AJ139: 100 | AK139: 100 | AL139: 2023-2028
B140: 8 | C140: 0 | D140: 5 | E140: 0 | F140: 7 | G140: 0 | H140: 3 | I140: 1 | J140: 7 | K140: 3 | L140: 0 | M140: 1 | N140: 2 | O140: 0 | P140: 1 | Q140: 1 | R140: 0 | S140: 1 | T140: 7 | U140: 3 | V140: 0 | W140: 1 | X140: 1 | Y140: 2 | Z140: 0 | AA140: 0 | AB140: 4 | AC140: Показатель4. Отсутствие кредиторской задолженности | AD140: да - 1, нет - 0 | AE140: 1 | AF140: 0 | AG140: 0 | AH140: 0 | AI140: 0 | AJ140: 0 | AK140: 0 | AL140: 2023-2028
B141: 8 | C141: 0 | D141: 5 | E141: 0 | F141: 7 | G141: 0 | H141: 3 | I141: 1 | J141: 7 | K141: 3 | L141: 0 | M141: 1 | N141: 2 | O141: 0 | P141: 1 | Q141: 2 | R141: 0 | S141: 1 | T141: 7 | U141: 3 | V141: 0 | W141: 1 | X141: 1 | Y141: 3 | Z141: 0 | AA141: 0 | AB141: 0 | AC141: Административное мероприятие 1.2. Корректировка показателей качества профессиональной деятельности педагогических и работников муниципальных организаций дополнительного образования . | AD141: да - 1, нет - 0 | AE141: 1 | AF141: 1 | AG141: 1 | AH141: 1 | AI141: 1 | AJ141: 1 | AK141: 1 | AL141: 2023-2028
B142: 8 | C142: 0 | D142: 5 | E142: 0 | F142: 7 | G142: 0 | H142: 3 | I142: 1 | J142: 7 | K142: 3 | L142: 0 | M142: 1 | N142: 2 | O142: 0 | P142: 1 | Q142: 3 | R142: 0 | S142: 1 | T142: 7 | U142: 3 | V142: 0 | W142: 1 | X142: 1 | Y142: 3 | Z142: 0 | AA142: 0 | AB142: 0 | AC142: Административное мероприятие 1.3. Корректировка коллективных, трудовых договоров, должностных инструкций для муниципальных организаций дополнительного образования | AD142: да - 1, нет - 0 | AE142: 1 | AF142: 1 | AG142: 1 | AH142: 1 | AI142: 1 | AJ142: 1 | AK142: 1 | AL142: 2023-2028
B143: 8 | C143: 0 | D143: 5 | E143: 0 | F143: 7 | G143: 0 | H143: 3 | I143: 1 | J143: 7 | K143: 3 | L143: 0 | M143: 1 | N143: S | O143: 0 | P143: 6 | Q143: 9 | R143: 0 | S143: 1 | T143: 7 | U143: 3 | V143: 0 | W143: 1 | X143: 1 | Y143: 4 | Z143: 0 | AA143: 0 | AB143: 0 | AC143: Мероприятие 1.4. Повышение заработной платы педагогическим работникам муниципальных организаций дополнительного образования за счет средств местного бюджета | AD143: рублей | AE143: 38640 | AF143: 38640 | AG143: 38640 | AH143: 38640 | AI143: 38640 | AJ143: 38640 | AK143: =AJ143+AI143+AH143+AG143+AF143+AE143 -> 231840 | AL143: 2023-2028
B144: 8 | C144: 0 | D144: 5 | E144: 0 | F144: 7 | G144: 0 | H144: 3 | I144: 1 | J144: 7 | K144: 3 | L144: 0 | M144: 1 | N144: S | O144: 0 | P144: 6 | Q144: 9 | R144: 0 | S144: 1 | T144: 7 | U144: 3 | V144: 0 | W144: 1 | X144: 1 | Y144: 4 | Z144: 0 | AA144: 0 | AB144: 0 | AC144: Показатель1. Соотношение значения достигнутой средней заработной платы педагогов дополнительного образования с доведенным до муниципального образования | AD144: % | AE144: 100 | AF144: 100 | AG144: 100 | AH144: 100 | AI144: 100 | AJ144: 100 | AK144: 100 | AL144: 2023-2028
B145: 8 | C145: 0 | D145: 5 | E145: 0 | F145: 7 | G145: 0 | H145: 3 | I145: 1 | J145: 7 | K145: 3 | L145: 0 | M145: 1 | N145: 2 | O145: 0 | P145: 1 | Q145: 5 | R145: 0 | S145: 1 | T145: 7 | U145: 3 | V145: 0 | W145: 1 | X145: 1 | Y145: 5 | Z145: 0 | AA145: 0 | AB145: 0 | AC145: Административное мероприятие 1.5. Реализация Национального проекта « Образование» на территории Весьегонского муниципального округа Тверской области | AL145: 2023-2028
B146: 8 | C146: 0 | D146: 5 | E146: 0 | F146: 7 | G146: 0 | H146: 3 | I146: 1 | J146: 7 | K146: 3 | L146: 0 | M146: 1 | N146: 2 | O146: 0 | P146: 1 | Q146: 5 | R146: 0 | S146: 1 | T146: 7 | U146: 3 | V146: 0 | W146: 1 | X146: 1 | Y146: 5 | Z146: 0 | AA146: 0 | AB146: 1 | AC146: Показатель1. Охват обучающихся дополнительным образованием . | AD146: % | AE146: 72 | AF146: 74 | AG146: 75 | AH146: 78 | AI146: 80 | AJ146: 80 | AK146: 80 | AL146: 2023-2028
B147: 8 | C147: 0 | D147: 5 | E147: 0 | F147: 7 | G147: 0 | H147: 3 | I147: 1 | J147: 7 | K147: 3 | L147: 0 | M147: 1 | N147: 2 | O147: 0 | P147: 1 | Q147: 5 | R147: 0 | S147: 1 | T147: 7 | U147: 3 | V147: 0 | W147: 1 | X147: 1 | Y147: 5 | Z147: 0 | AA147: 0 | AB147: 2 | AC147: Показатель 2. Лицензирование дошкольных образовательных учреждений и введение услуг дополнительного образования в МДОУ | AD147: % | AE147: 37.5 | AF147: 50 | AG147: 87.5 | AH147: 86 | AI147: 86 | AJ147: 86 | AK147: 86 | AL147: 2023-2028
B148: 8 | C148: 0 | D148: 5 | E148: 0 | F148: 7 | G148: 0 | H148: 3 | I148: 1 | J148: 7 | K148: 3 | L148: 0 | M148: 1 | N148: 2 | O148: 0 | P148: 1 | Q148: 6 | R148: 0 | S148: 1 | T148: 7 | U148: 3 | V148: 0 | W148: 1 | X148: 1 | Y148: 6 | Z148: 0 | AA148: 0 | AB148: 0 | AC148: Административное мероприятие 1.6. Использование муниципальной системы оценки качества дополнительного образования. | AD148: да - 1, нет - 0 | AE148: 1 | AF148: 1 | AG148: 1 | AH148: 1 | AI148: 1 | AJ148: 1 | AK148: 1 | AL148: 2023-2028
B149: 8 | C149: 0 | D149: 5 | E149: 0 | F149: 7 | G149: 0 | H149: 3 | I149: 1 | J149: 7 | K149: 3 | L149: 0 | M149: 1 | N149: 2 | O149: 0 | P149: 1 | Q149: 6 | R149: 0 | S149: 1 | T149: 7 | U149: 3 | V149: 0 | W149: 1 | X149: 1 | Y149: 6 | Z149: 0 | AA149: 0 | AB149: 1 | AC149: Показатель 1. Доля организаций дополнительного образования, в которых оценка деятельности всех категорий работников осуществляется на основании показателей эффективности деятельности | AD149: % | AE149: 100 | AF149: 100 | AG149: 100 | AH149: 100 | AI149: 100 | AJ149: 100 | AK149: 100 | AL149: 2023-2028
B150: 8 | C150: 0 | D150: 5 | E150: 0 | F150: 7 | G150: 0 | H150: 3 | I150: 1 | J150: 7 | K150: 3 | L150: 0 | M150: 1 | N150: 2 | O150: 0 | P150: 1 | Q150: 6 | R150: 0 | S150: 1 | T150: 7 | U150: 3 | V150: 0 | W150: 1 | X150: 1 | Y150: 6 | Z150: 0 | AA150: 0 | AB150: 2 | AC150: Показатель 2. Доля педагогических работников, прошедших курсы повышения квалификации | AD150: % | AE150: 90 | AF150: 90 | AG150: 90 | AH150: 90 | AI150: 90 | AJ150: 90 | AK150: 90 | AL150: 2023-2028
B151: 8 | C151: 0 | D151: 5 | E151: 0 | F151: 7 | G151: 0 | H151: 3 | I151: 1 | J151: 7 | K151: 3 | L151: 0 | M151: 1 | N151: 2 | O151: 0 | P151: 1 | Q151: 6 | R151: 0 | S151: 1 | T151: 7 | U151: 3 | V151: 0 | W151: 1 | X151: 1 | Y151: 6 | Z151: 0 | AA151: 0 | AB151: 3 | AC151: Показатель 3. Доля педагогических работников, имеющих квалификационную категорию. | AD151: % | AE151: 86 | AF151: 87 | AG151: 87 | AH151: 87 | AI151: 88 | AJ151: 88 | AK151: 88 | AL151: 2023-2028
B152: 8 | C152: 0 | D152: 5 | E152: 0 | F152: 7 | G152: 0 | H152: 3 | I152: 1 | J152: 7 | K152: 3 | L152: 0 | M152: 1 | N152: 2 | O152: 0 | P152: 1 | Q152: 7 | R152: 0 | S152: 1 | T152: 7 | U152: 3 | V152: 0 | W152: 1 | X152: 1 | Y152: 7 | Z152: 0 | AA152: 0 | AB152: 0 | AC152: Мероприятие 17. Погашение просроченной кредиторской задолженности | AD152: рублей | AE152: 0 | AF152: 0 | AG152: 0 | AH152: 0 | AI152: 0 | AJ152: 0 | AK152: =AE152 -> 0 | AL152: 2023-2028
B153: 8 | C153: 0 | D153: 5 | E153: 0 | F153: 7 | G153: 0 | H153: 3 | I153: 1 | J153: 7 | K153: 3 | L153: 0 | M153: 1 | N153: 2 | O153: 0 | P153: 1 | Q153: 7 | R153: 0 | S153: 1 | T153: 7 | U153: 3 | V153: 0 | W153: 1 | X153: 1 | Y153: 7 | Z153: 0 | AA153: 0 | AB153: 1 | AC153: Показатель 1 . Доля погашенной кредиторской задолженности | AD153: % | AE153: 100 | AF153: 100 | AG153: 100 | AH153: 100 | AI153: 100 | AJ153: 100 | AK153: 100 | AL153: 2023-2028
B154: 8 | C154: 0 | D154: 5 | E154: 0 | F154: 7 | G154: 0 | H154: 3 | I154: 1 | J154: 7 | K154: 3 | L154: 0 | M154: 2 | N154: 0 | O154: 0 | P154: 0 | Q154: 0 | R154: 0 | S154: 1 | T154: 7 | U154: 3 | V154: 0 | W154: 2 | X154: 0 | Y154: 0 | Z154: 0 | AA154: 0 | AB154: 0 | AC154: Задача 2 "Повышение заработной платы педагогическим работникам муниципальных организаций дополнительного образования" | AD154: рублей | AE154: =AE155 -> 1893400 | AF154: =AF155 -> 1893400 | AG154: 1893400 | AH154: 1893400 | AI154: 1893400 | AJ154: 1893400 | AK154: =AE154+AF154+AG154+AH154+AI154+AJ154 -> 11360400 | AL154: 2023-2028
B155: 8 | C155: 0 | D155: 5 | E155: 0 | F155: 7 | G155: 0 | H155: 3 | I155: 1 | J155: 7 | K155: 3 | L155: 0 | M155: 2 | N155: 1 | O155: 0 | P155: 6 | Q155: 9 | R155: 0 | S155: 1 | T155: 7 | U155: 3 | V155: 0 | W155: 2 | X155: 2 | Y155: 1 | Z155: 0 | AA155: 0 | AB155: 0 | AC155: Мероприятие 2.1.Повышение заработной платы педагогическим работникам муниципальных организаций дополнительного образования | AD155: рублей | AE155: 1893400 | AF155: 1893400 | AG155: 1893400 | AH155: 1893400 | AI155: 1893400 | AJ155: 1893400 | AK155: =AE155+AF155+AG155+AH155+AI155+AJ155 -> 11360400 | AL155: 2023-2028
B156: 8 | C156: 0 | D156: 5 | E156: 0 | F156: 7 | G156: 0 | H156: 3 | I156: 1 | J156: 7 | K156: 3 | L156: 0 | M156: 2 | N156: 1 | O156: 0 | P156: 6 | Q156: 9 | R156: 0 | S156: 1 | T156: 7 | U156: 3 | V156: 0 | W156: 2 | X156: 2 | Y156: 1 | Z156: 0 | AA156: 0 | AB156: 0 | AC156: Показатель 1. Соотношение значения достигнутой средней заработной платы педагогов дополнительного образования с доведенным до муниципального образования | AD156: % | AE156: 100 | AF156: 100 | AG156: 100 | AH156: 100 | AI156: 100 | AJ156: 100 | AK156: 100 | AL156: 2023-2028
B157: 8 | C157: 0 | D157: 5 | E157: 0 | F157: 7 | G157: 0 | H157: 3 | I157: 1 | J157: 7 | K157: 3 | L157: 0 | M157: 3 | N157: 0 | O157: 0 | P157: 0 | Q157: 0 | R157: 0 | S157: 1 | T157: 7 | U157: 3 | V157: 0 | W157: 3 | X157: 0 | Y157: 0 | Z157: 0 | AA157: 0 | AB157: 0 | AC157: Задача 3 «Реализация системы персонифицированного финансирования дополнительного образования детей» | AD157: рублей | AE157: 1706606 | AF157: 1706606 | AG157: 1706606 | AH157: 1706606 | AI157: 1706606 | AJ157: 1706606 | AK157: 1706606 | AL157: 2023-2028
B158: 8 | C158: 0 | D158: 5 | E158: 0 | F158: 7 | G158: 0 | H158: 3 | I158: 1 | J158: 7 | K158: 3 | L158: 0 | M158: 3 | N158: 0 | O158: 2 | P158: 3 | Q158: 1 | R158: 0 | S158: 1 | T158: 7 | U158: 3 | V158: 0 | W158: 3 | X158: 3 | Y158: 1 | Z158: 0 | AA158: 0 | AB158: 0 | AC158: Мероприятие 3.1. «Обеспечение функционирования системы персонифицированного финансирования дополнительного образования детей»: | AD158: рублей | AE158: 1706606 | AF158: 1706606 | AG158: 1706606 | AH158: 1706606 | AI158: 1706606 | AJ158: 1706606 | AK158: 1706606 | AL158: 2023-2028
B159: 8 | C159: 0 | D159: 5 | E159: 0 | F159: 7 | G159: 0 | H159: 3 | I159: 1 | J159: 7 | K159: 3 | L159: 0 | M159: 3 | N159: 0 | O159: 2 | P159: 3 | Q159: 1 | R159: 0 | S159: 1 | T159: 7 | U159: 3 | V159: 0 | W159: 3 | X159: 3 | Y159: 1 | Z159: 0 | AA159: 0 | AB159: 1 | AC159: Показатель 1.Доля детей в возрасте от 5 до 18 лет, охваченных дополнительным образованием | AD159: % | AE159: 0.83 | AF159: 0.83 | AG159: 0.85 | AH159: 0.85 | AI159: 0.85 | AJ159: 0.85 | AK159: 0.85 | AL159: 2023-2028
B160: 8 | C160: 0 | D160: 5 | E160: 0 | F160: 7 | G160: 0 | H160: 3 | I160: 1 | J160: 7 | K160: 3 | L160: 0 | M160: 3 | N160: 0 | O160: 2 | P160: 3 | Q160: 1 | R160: 0 | S160: 1 | T160: 7 | U160: 3 | V160: 0 | W160: 3 | X160: 3 | Y160: 1 | Z160: 0 | AA160: 0 | AB160: 2 | AC160: Показатель 2. Доля детей в возрасте от 5 до 18 лет, охваченных дополнительными общеразвивающими программами технической и естественно научной направленности | AD160: % | AE160: 0.35 | AF160: 0.35 | AG160: 0.36 | AH160: 0.36 | AI160: 0.36 | AJ160: 0.36 | AK160: 0.36 | AL160: 2023-2028
B161: 8 | C161: 0 | D161: 5 | E161: 0 | F161: 7 | G161: 0 | H161: 3 | I161: 1 | J161: 7 | K161: 3 | L161: 0 | M161: 3 | N161: 0 | O161: 2 | P161: 3 | Q161: 1 | R161: 0 | S161: 1 | T161: 7 | U161: 3 | V161: 0 | W161: 3 | X161: 3 | Y161: 1 | Z161: 0 | AA161: 0 | AB161: 3 | AC161: Показатель 3.Доля детей с ограниченными возможностями здоровья, обучающихся по дополнительным общеобразовательным программам, в том числе с использованием дистанционных технологий | AD161: % | AE161: 0.51 | AF161: 0.51 | AG161: 0.52 | AH161: 0.52 | AI161: 0.52 | AJ161: 0.52 | AK161: 0.52 | AL161: 2023-2028
B162: 8 | C162: 0 | D162: 5 | E162: 0 | F162: 7 | G162: 0 | H162: 3 | I162: 1 | J162: 7 | K162: 3 | L162: 0 | M162: 3 | N162: 0 | O162: 2 | P162: 3 | Q162: 1 | R162: 0 | S162: 1 | T162: 7 | U162: 3 | V162: 0 | W162: 3 | X162: 3 | Y162: 1 | Z162: 0 | AA162: 0 | AB162: 4 | AC162: Показатель 4. Создание муниципальных (опорных) центров дополнительного образования детей | AD162: ед | AE162: 1 | AF162: 1 | AG162: 1 | AH162: 1 | AI162: 1 | AJ162: 1 | AK162: 1 | AL162: 2023-2028
B163: 8 | C163: 0 | D163: 5 | E163: 0 | F163: 7 | G163: 0 | H163: 3 | I163: 1 | J163: 7 | K163: 3 | L163: 0 | M163: 3 | N163: 0 | O163: 2 | P163: 3 | Q163: 1 | R163: 0 | S163: 1 | T163: 7 | U163: 3 | V163: 0 | W163: 3 | X163: 3 | Y163: 1 | Z163: 0 | AA163: 0 | AB163: 5 | AC163: Показатель 5.Внедрение системы персонифицированного финансирования дополнительного образования детей | AD163: ед | AE163: 0.77 | AF163: 0.77 | AG163: 0.77 | AH163: 0.77 | AI163: 0.77 | AJ163: 0.77 | AK163: 0.77 | AL163: 2023-2028
B164: 8 | C164: 0 | D164: 5 | E164: 0 | F164: 7 | G164: 0 | H164: 3 | I164: 1 | J164: 7 | K164: 3 | L164: 0 | M164: 3 | N164: 0 | O164: 2 | P164: 3 | Q164: 1 | R164: 0 | S164: 1 | T164: 7 | U164: 3 | V164: 0 | W164: 3 | X164: 3 | Y164: 1 | Z164: 0 | AA164: 0 | AB164: 6 | AC164: Показатель 6. Доля детей, охваченных системой персонифицированного финансирования дополнительного образования детей | AD164: % | AE164: 0.12 | AF164: 0.18 | AG164: 0.2 | AH164: 0.25 | AI164: 0.25 | AJ164: 0.25 | AK164: 0.25 | AL164: 2023-2028
B165: 8 | C165: 0 | D165: 5 | E165: 0 | F165: 7 | G165: 0 | H165: 3 | I165: 1 | J165: 7 | K165: 3 | L165: 0 | M165: 3 | N165: 0 | O165: 2 | P165: 3 | Q165: 1 | R165: 0 | S165: 1 | T165: 7 | U165: 3 | V165: 0 | W165: 3 | X165: 3 | Y165: 1 | Z165: 0 | AA165: 0 | AB165: 7 | AC165: Показатель 7. Обеспечение работы в Навигаторе дополнительного образования детей Весьегонского муниципального округа | AD165: да -1 / нет -0 | AE165: 1 | AF165: 1 | AG165: 1 | AH165: 1 | AI165: 1 | AJ165: 1 | AK165: 1 | AL165: 2023-2028
B166: 8 | C166: 0 | D166: 5 | E166: 0 | F166: 7 | G166: 0 | H166: 3 | I166: 1 | J166: 7 | K166: 3 | L166: 0 | M166: 3 | N166: 0 | O166: 2 | P166: 3 | Q166: 1 | R166: 0 | S166: 1 | T166: 7 | U166: 3 | V166: 0 | W166: 3 | X166: 3 | Y166: 1 | Z166: 0 | AA166: 0 | AB166: 8 | AC166: Показатель 8. Количество заочных школ и (или) ежегодных сезонных школ для мотивированных школьников | AD166: ед | AE166: 0 | AF166: 0 | AG166: 0 | AH166: 0 | AI166: 0 | AJ166: 0 | AK166: 0 | AL166: 2023-2028
B167: 8 | C167: 0 | D167: 5 | E167: 0 | F167: 7 | G167: 0 | H167: 3 | I167: 1 | J167: 7 | K167: 3 | L167: 0 | M167: 3 | N167: 0 | O167: 2 | P167: 3 | Q167: 1 | R167: 0 | S167: 1 | T167: 7 | U167: 3 | V167: 0 | W167: 3 | X167: 3 | Y167: 1 | Z167: 0 | AA167: 0 | AB167: 9 | AC167: Показатель 9. Количество разработанных и внедренных моделей обеспечения доступности дополнительного образования для детей из сельской местности | AD167: ед | AE167: 1 | AF167: 1 | AG167: 1 | AH167: 1 | AI167: 1 | AJ167: 1 | AK167: 1 | AL167: 2023-2028
B168: 8 | C168: 0 | D168: 5 | E168: 0 | F168: 7 | G168: 0 | H168: 3 | I168: 1 | J168: 7 | K168: 3 | L168: 0 | M168: 3 | N168: 0 | O168: 2 | P168: 3 | Q168: 1 | R168: 0 | S168: 1 | T168: 7 | U168: 3 | V168: 0 | W168: 3 | X168: 3 | Y168: 1 | Z168: 0 | AA168: 1 | AB168: 0 | AC168: Показатель 10. Количество разработанных и внедренных разноуровневых (ознакомительный, базовый, продвинутый) программ дополнительного образования | AD168: ед | AE168: 3 | AF168: 3 | AG168: 3 | AH168: 3 | AI168: 3 | AJ168: 3 | AK168: 342 | AL168: 2023-2028
B169: 8 | C169: 0 | D169: 5 | E169: 0 | F169: 7 | G169: 0 | H169: 3 | I169: 1 | J169: 7 | K169: 3 | L169: 0 | M169: 3 | N169: 0 | O169: 2 | P169: 3 | Q169: 1 | R169: 0 | S169: 1 | T169: 7 | U169: 3 | V169: 0 | W169: 3 | X169: 3 | Y169: 1 | Z169: 0 | AA169: 1 | AB169: 1 | AC169: Показатель 11. Количество разработанных и внедренных дистанционных курсов дополнительного образования детей | AD169: ед | AE169: 0 | AF169: 0 | AG169: 0 | AH169: 0 | AI169: 0 | AJ169: 0 | AK169: 0 | AL169: 2023-2028
B170: 8 | C170: 0 | D170: 5 | E170: 0 | F170: 7 | G170: 0 | H170: 3 | I170: 1 | J170: 7 | K170: 3 | L170: 0 | M170: 3 | N170: 0 | O170: 2 | P170: 3 | Q170: 1 | R170: 0 | S170: 1 | T170: 7 | U170: 3 | V170: 0 | W170: 3 | X170: 3 | Y170: 1 | Z170: 0 | AA170: 1 | AB170: 2 | AC170: Показатель 12. Количество реализуемых дополнительных общеобразовательных программ в сетевой форме с использованием образовательных организаций всех типов, в том числе профессиональных и организаций высшего образования, а также научных, организаций спорта, культуры, общественных организаций и предприятий реального сектора экономики | AD170: ед | AE170: 0 | AF170: 0 | AG170: 0 | AH170: 0 | AI170: 0 | AJ170: 0 | AK170: 0 | AL170: 2023-2028
B171: 8 | C171: 0 | D171: 5 | E171: 0 | F171: 7 | G171: 0 | H171: 3 | I171: 1 | J171: 7 | K171: 3 | L171: 0 | M171: 3 | N171: 0 | O171: 2 | P171: 3 | Q171: 1 | R171: 0 | S171: 1 | T171: 7 | U171: 3 | V171: 0 | W171: 3 | X171: 3 | Y171: 1 | Z171: 0 | AA171: 1 | AB171: 3 | AC171: Показатель 13. Переподготовка (повышение квалификации) отдельных групп сотрудников муниципальных опорных центров, ведущих образовательных организаций по программам (курсам, модулям), разработанным в рамках реализации мероприятия по формированию современной системы сопровождения, развития и совершенствования профессионального мастерства педагогических и управленческих кадров сферы дополнительного образования детей | AD171: % | AE171: 100 | AF171: 100 | AG171: 100 | AH171: 100 | AI171: 100 | AJ171: 100 | AK171: 100 | AL171: 2023-2028
B172: 8 | C172: 0 | D172: 5 | E172: 0 | F172: 7 | G172: 0 | H172: 3 | I172: 1 | J172: 7 | K172: 3 | L172: 0 | M172: 3 | N172: 0 | O172: 2 | P172: 3 | Q172: 1 | R172: 0 | S172: 1 | T172: 7 | U172: 3 | V172: 0 | W172: 3 | X172: 3 | Y172: 1 | Z172: 0 | AA172: 1 | AB172: 4 | AC172: Показатель 14. Доля организаций (за исключением дошкольных образовательных организаций), принявших участие в инвентаризации инфраструктурных, материально-технических и кадровых ресурсов, в том числе образовательных организаций различного типа, научных организаций, организаций культуры, спорта и реального сектора экономики, потенциально пригодных для реализации образовательных программ[1] | AD172: % | AE172: 0 | AF172: 0 | AG172: 0 | AH172: 0 | AI172: 0 | AJ172: 0 | AK172: 0 | AL172: 2023-2028
B173: 8 | C173: 0 | D173: 5 | E173: 0 | F173: 7 | G173: 0 | H173: 3 | I173: 1 | J173: 7 | K173: 3 | L173: 0 | M173: 3 | N173: 0 | O173: 2 | P173: 3 | Q173: 1 | R173: 0 | S173: 1 | T173: 7 | U173: 3 | V173: 0 | W173: 3 | X173: 3 | Y173: 1 | Z173: 0 | AA173: 1 | AB173: 5 | AC173: Показатель 15. Доля детей из числа обучающихся общеобразовательных организаций, принявших участие в открытых он-лайн уроках, реализуемых с учетом опыта цикла открытых уроков «Проектория», «Уроки настоящего» или иных аналогичных по возможностям, функциям и результатам проектов, направленных на раннюю профориентацию | AD173: % | AE173: 45 | AF173: 48 | AG173: 50 | AH173: 50 | AI173: 50 | AJ173: 50 | AK173: 50 | AL173: 2023-2028
B174: 8 | C174: 0 | D174: 5 | E174: 0 | F174: 0 | G174: 0 | H174: 0 | I174: 1 | J174: 7 | K174: 4 | L174: 0 | M174: 0 | N174: 0 | O174: 0 | P174: 0 | Q174: 0 | R174: 0 | S174: 1 | T174: 7 | U174: 4 | V174: 0 | W174: 0 | X174: 0 | Y174: 0 | Z174: 0 | AA174: 0 | AB174: 0 | AC174: Подпрограмма 4. Комплексная безопасность образовательных учреждений | AD174: рублей | AE174: =AE175+AE207 -> 3059776 | AF174: =AF175 -> 0 | AG174: 0 | AH174: 0 | AI174: 0 | AJ174: 0 | AK174: 1559576 | AL174: 2023-2028
B175: 8 | C175: 0 | D175: 5 | E175: 0 | F175: 0 | G175: 0 | H175: 0 | I175: 1 | J175: 7 | K175: 4 | L175: 0 | M175: 1 | N175: 0 | O175: 0 | P175: 0 | Q175: 0 | R175: 0 | S175: 1 | T175: 7 | U175: 4 | V175: 0 | W175: 1 | X175: 0 | Y175: 0 | Z175: 0 | AA175: 0 | AB175: 0 | AC175: Задача 1.Мероприятия в рамках муниципальных программ направленных на ремонт образовательных организаций | AD175: рублей | AE175: =AE176+AE179+AE182+AE203+AE205 -> 1559576 | AF175: =AF176+AF179+AF195 -> 0 | AG175: 0 | AH175: 0 | AI175: 0 | AJ175: 0 | AK175: =AE175 -> 1559576 | AL175: 2023-2028
B176: 8 | C176: 0 | D176: 5 | E176: 0 | F176: 7 | G176: 0 | H176: 1 | I176: 1 | J176: 7 | K176: 4 | L176: 0 | M176: 1 | N176: 2 | O176: 0 | P176: 1 | Q176: 1 | R176: 0 | S176: 1 | T176: 7 | U176: 4 | V176: 0 | W176: 1 | X176: 1 | Y176: 1 | Z176: 0 | AA176: 0 | AB176: 0 | AC176: Мероприятие 1.1. Укрепление технического состояния дошкольных образовательных организаций | AD176: рублей | AE176: 577949 | AF176: 0 | AG176: 0 | AH176: 0 | AI176: 0 | AJ176: 0 | AK176: =AE176 -> 577949 | AL176: 2023-2028
B177: 8 | C177: 0 | D177: 5 | E177: 0 | F177: 7 | G177: 0 | H177: 1 | I177: 1 | J177: 7 | K177: 4 | L177: 0 | M177: 1 | N177: 2 | O177: 0 | P177: 1 | Q177: 1 | R177: 0 | S177: 1 | T177: 7 | U177: 4 | V177: 0 | W177: 1 | X177: 1 | Y177: 1 | Z177: 0 | AA177: 0 | AB177: 1 | AC177: Показатель1. Доля дошкольных образовательных организаций, не имеющих предписаний Роспотребнадзора. | AD177: % | AE177: 53 | AF177: 53 | AG177: 53 | AH177: 55 | AI177: 55 | AJ177: 70 | AK177: 70 | AL177: 2023-2028
B178: 8 | C178: 0 | D178: 5 | E178: 0 | F178: 7 | G178: 0 | H178: 1 | I178: 1 | J178: 7 | K178: 4 | L178: 0 | M178: 1 | N178: 2 | O178: 0 | P178: 1 | Q178: 1 | R178: 0 | S178: 1 | T178: 7 | U178: 4 | V178: 0 | W178: 1 | X178: 1 | Y178: 1 | Z178: 0 | AA178: 0 | AB178: 2 | AC178: Показатель 2.Количество организаций, в которых будут проведены мероприятия по укреплению материально – технической базы общеобразовательных организаций | AD178: единиц | AE178: 7 | AF178: 7 | AG178: 7 | AH178: 7 | AI178: 7 | AJ178: 7 | AK178: 7 | AL178: 2023-2028
B179: 8 | C179: 0 | D179: 5 | E179: 0 | F179: 7 | G179: 0 | H179: 2 | I179: 1 | J179: 7 | K179: 4 | L179: 0 | M179: 1 | N179: 2 | O179: 0 | P179: 1 | Q179: 2 | R179: 0 | S179: 1 | T179: 7 | U179: 4 | V179: 0 | W179: 1 | X179: 1 | Y179: 2 | Z179: 0 | AA179: 0 | AB179: 0 | AC179: Мероприятие 1.2. Укрепление технического состояния общеобразовательных организаций | AD179: рублей | AE179: 753127 | AF179: 0 | AG179: 0 | AH179: 0 | AI179: 0 | AJ179: 0 | AK179: =AJ179+AI179+AH179+AG179+AF179+AE179 -> 753127 | AL179: 2023-2028
B180: 8 | C180: 0 | D180: 5 | E180: 0 | F180: 7 | G180: 0 | H180: 2 | I180: 1 | J180: 7 | K180: 4 | L180: 0 | M180: 1 | N180: 2 | O180: 0 | P180: 1 | Q180: 2 | R180: 0 | S180: 1 | T180: 7 | U180: 4 | V180: 0 | W180: 1 | X180: 1 | Y180: 2 | Z180: 0 | AA180: 0 | AB180: 1 | AC180: Показатель1. Доля общеобразовательных организаций, не имеющих предписаний Роспотребнадзора. | AD180: % | AE180: 75 | AF180: 75 | AG180: 75 | AH180: 80 | AI180: 80 | AJ180: 80 | AK180: 80 | AL180: 2023-2028
B181: 8 | C181: 0 | D181: 5 | E181: 0 | F181: 7 | G181: 0 | H181: 2 | I181: 1 | J181: 7 | K181: 4 | L181: 0 | M181: 1 | N181: 2 | O181: 0 | P181: 1 | Q181: 2 | R181: 0 | S181: 1 | T181: 7 | U181: 4 | V181: 0 | W181: 1 | X181: 1 | Y181: 2 | Z181: 0 | AA181: 0 | AB181: 2 | AC181: Показатель 2.Количество организаций, в которых будут проведены мероприятия по укреплению материально – технической базы общеобразовательных организаций | AD181: единиц | AE181: 4 | AF181: 4 | AG181: 4 | AH181: 4 | AI181: 4 | AJ181: 4 | AK181: 4 | AL181: 2023-2028
B182: 8 | C182: 0 | D182: 5 | E182: 0 | F182: 7 | G182: 0 | H182: 2 | I182: 1 | J182: 7 | K182: 4 | L182: 0 | M182: 1 | N182: 2 | O182: 0 | P182: 1 | Q182: 3 | R182: 0 | S182: 1 | T182: 7 | U182: 4 | V182: 0 | W182: 1 | X182: 1 | Y182: 3 | Z182: 0 | AA182: 0 | AB182: 0 | AC182: Мероприятие 1.3. Проведение текущего ремонта организаций дополнительного образования . | AD182: рублей | AE182: 100000 | AF182: 0 | AG182: 0 | AH182: 0 | AI182: 0 | AJ182: =AE182 -> 100000 | AK182: =AF182+AE182 -> 100000 | AL182: 2023-2028
B183: 8 | C183: 0 | D183: 5 | E183: 0 | F183: 7 | G183: 0 | H183: 2 | I183: 1 | J183: 7 | K183: 4 | L183: 0 | M183: 1 | N183: 2 | O183: 0 | P183: 1 | Q183: 3 | R183: 0 | S183: 1 | T183: 7 | U183: 4 | V183: 0 | W183: 1 | X183: 1 | Y183: 3 | Z183: 0 | AA183: 0 | AB183: 1 | AC183: Показатель1. Доля организаций дополнительного образования , не имеющих предписаний Роспотребнадзора. | AD183: % | AE183: 100 | AF183: 100 | AG183: 100 | AH183: 100 | AI183: 100 | AJ183: 100 | AK183: 100 | AL183: 2023-2028
B184: 8 | C184: 0 | D184: 5 | E184: 0 | F184: 7 | G184: 0 | H184: 2 | I184: 1 | J184: 7 | K184: 4 | L184: 0 | M184: 1 | N184: 2 | O184: 0 | P184: 1 | Q184: 4 | R184: 0 | S184: 1 | T184: 7 | U184: 4 | V184: 0 | W184: 1 | X184: 1 | Y184: 4 | Z184: 0 | AA184: 0 | AB184: 0 | AC184: Мероприятие 1.4.Приобретение новых школьных автобусов и оснащение их в соответствиис САНПиН | AD184: кол-во | AE184: 2 | AF184: 0 | AG184: 1 | AH184: 0 | AI184: 0 | AJ184: 1 | AK184: 4 | AL184: 2023-2028
B185: 8 | C185: 0 | D185: 5 | E185: 0 | F185: 7 | G185: 0 | H185: 2 | I185: 1 | J185: 7 | K185: 4 | L185: 0 | M185: 1 | N185: 2 | O185: 0 | P185: 1 | Q185: 4 | R185: 0 | S185: 1 | T185: 7 | U185: 4 | V185: 0 | W185: 1 | X185: 1 | Y185: 4 | Z185: 0 | AA185: 0 | AB185: 1 | AC185: Показатель1. Доля общеобразовательных организаций, не имеющих предписаний дорожно-транспортной инспекции | AD185: % | AE185: 90 | AF185: 100 | AG185: 100 | AH185: 100 | AI185: 100 | AJ185: 100 | AK185: 100 | AL185: 2023-2028
B186: 8 | C186: 0 | D186: 5 | E186: 0 | F186: 7 | G186: 0 | H186: 2 | I186: 1 | J186: 7 | K186: 4 | L186: 0 | M186: 1 | N186: 2 | O186: 0 | P186: 1 | Q186: 4 | R186: 0 | S186: 1 | T186: 7 | U186: 4 | V186: 0 | W186: 1 | X186: 1 | Y186: 4 | Z186: 0 | AA186: 0 | AB186: 2 | AC186: Показатель2.Доля руководителей и лиц, ответственных за организацию школьных перевозок, прошедших обучение. | AD186: % | AE186: 100 | AF186: 100 | AG186: 100 | AH186: 100 | AI186: 100 | AJ186: 100 | AK186: 100 | AL186: 2023-2028
B187: 8 | C187: 0 | D187: 5 | E187: 0 | F187: 0 | G187: 0 | H187: 0 | I187: 1 | J187: 7 | K187: 4 | L187: 0 | M187: 1 | N187: 2 | O187: 0 | P187: 1 | Q187: 5 | R187: 0 | S187: 1 | T187: 7 | U187: 4 | V187: 0 | W187: 1 | X187: 1 | Y187: 5 | Z187: 0 | AA187: 0 | AB187: 0 | AC187: Мероприятие 1.5.Ремонт пищеблоков и приобретение современного технологического оборудования | AD187: рублей | AE187: 0 | AF187: 0 | AG187: 0 | AH187: 0 | AI187: 0 | AJ187: 0 | AK187: 0 | AL187: 2023-2028
B188: 8 | C188: 0 | D188: 5 | E188: 0 | F188: 0 | G188: 0 | H188: 0 | I188: 1 | J188: 7 | K188: 4 | L188: 0 | M188: 1 | N188: 2 | O188: 0 | P188: 1 | Q188: 5 | R188: 0 | S188: 1 | T188: 7 | U188: 4 | V188: 0 | W188: 1 | X188: 1 | Y188: 5 | Z188: 0 | AA188: 0 | AB188: 1 | AC188: Показатель1. Доля образовательных организаций, в которых отсутствуют предписания Роспотребнадзора по организации питания. | AD188: % | AE188: 74 | AF188: 75 | AG188: 75 | AH188: 75 | AI188: 80 | AJ188: 80 | AK188: 80 | AL188: 2023-2028
B189: 8 | C189: 0 | D189: 5 | E189: 0 | F189: 0 | G189: 0 | H189: 0 | I189: 1 | J189: 7 | K189: 4 | L189: 0 | M189: 1 | N189: 2 | O189: 0 | P189: 1 | Q189: 5 | R189: 0 | S189: 1 | T189: 7 | U189: 4 | V189: 0 | W189: 1 | X189: 1 | Y189: 5 | Z189: 0 | AA189: 0 | AB189: 2 | AC189: Показатель2. Доля образовательных организаций, имеющих современное технологическое оборудование | AD189: % | AE189: 30 | AF189: 40 | AG189: 40 | AH189: 40 | AI189: 40 | AJ189: 40 | AK189: 40 | AL189: 2023-2028
B190: 8 | C190: 0 | D190: 5 | E190: 0 | F190: 7 | G190: 0 | H190: 2 | I190: 1 | J190: 7 | K190: 4 | L190: 0 | M190: 1 | N190: 2 | O190: 0 | P190: 1 | Q190: 6 | R190: 0 | S190: 1 | T190: 7 | U190: 4 | V190: 0 | W190: 1 | X190: 1 | Y190: 6 | Z190: 0 | AA190: 0 | AB190: 0 | AC190: Мероприятие 1.6.Установка ограждения территорий образовательных организаций в соответствии с САНПиН | AD190: рублей | AE190: 0 | AF190: 0 | AG190: 0 | AH190: 0 | AI190: 0 | AJ190: 0 | AK190: 0 | AL190: 2023-2028
B191: 8 | C191: 0 | D191: 5 | E191: 0 | F191: 7 | G191: 0 | H191: 2 | I191: 1 | J191: 7 | K191: 4 | L191: 0 | M191: 1 | N191: 2 | O191: 0 | P191: 1 | Q191: 6 | R191: 0 | S191: 1 | T191: 7 | U191: 4 | V191: 0 | W191: 1 | X191: 1 | Y191: 6 | Z191: 0 | AA191: 0 | AB191: 1 | AC191: Показатель1. Доля образовательных организаций, не имеющих предписаний надзорных органов | AD191: % | AE191: 80 | AF191: 90 | AG191: 90 | AH191: 90 | AI191: 90 | AJ191: 90 | AK191: 90 | AL191: 2023-2028
B192: 8 | C192: 0 | D192: 5 | E192: 0 | F192: 7 | G192: 0 | H192: 2 | I192: 1 | J192: 7 | K192: 4 | L192: 0 | M192: 1 | N192: 2 | O192: 0 | P192: 1 | Q192: 7 | R192: 0 | S192: 1 | T192: 7 | U192: 4 | V192: 0 | W192: 1 | X192: 1 | Y192: 7 | Z192: 0 | AA192: 0 | AB192: 0 | AC192: Административное мероприятие 1.7 Профилактика терроризма и экстремизма | AD192: да - 1, нет - 0 | AE192: 1 | AF192: 1 | AG192: 1 | AH192: 1 | AI192: 1 | AJ192: 1 | AK192: 1 | AL192: 2023-2028
B193: 8 | C193: 0 | D193: 5 | E193: 0 | F193: 7 | G193: 0 | H193: 2 | I193: 1 | J193: 7 | K193: 4 | L193: 0 | M193: 1 | N193: 2 | O193: 0 | P193: 1 | Q193: 7 | R193: 0 | S193: 1 | T193: 7 | U193: 4 | V193: 0 | W193: 1 | X193: 1 | Y193: 7 | Z193: 0 | AA193: 0 | AB193: 1 | AC193: Показатель1. Отсутствие случаев проявления экстремизма среди подростков | AD193: да - 1, нет - 0 | AE193: 1 | AF193: 1 | AG193: 1 | AH193: 1 | AI193: 1 | AJ193: 1 | AK193: 1 | AL193: 2023-2028
B194: 8 | C194: 0 | D194: 5 | E194: 0 | F194: 7 | G194: 0 | H194: 2 | I194: 1 | J194: 7 | K194: 4 | L194: 0 | M194: 1 | N194: 2 | O194: 0 | P194: 1 | Q194: 7 | R194: 0 | S194: 1 | T194: 7 | U194: 4 | V194: 0 | W194: 1 | X194: 1 | Y194: 7 | Z194: 0 | AA194: 0 | AB194: 2 | AC194: Показатель 2. Доля образовательных организаций, имеющих " тревожную кнопку" | AD194: % | AE194: 50 | AF194: 50 | AG194: 50 | AH194: 50 | AI194: 50 | AJ194: 50 | AK194: 50 | AL194: 2023-2028
B195: 8 | C195: 0 | D195: 5 | E195: 0 | F195: 7 | G195: 0 | H195: 1 | I195: 1 | J195: 7 | K195: 4 | L195: 0 | M195: 1 | N195: S | O195: 0 | P195: 4 | Q195: 4 | R195: 0 | S195: 1 | T195: 7 | U195: 4 | V195: 0 | W195: 1 | X195: 1 | Y195: 8 | Z195: 0 | AA195: 0 | AB195: 0 | AC195: Мероприятие 1.8. Расходы на укрепление материально-технической базы муниципальных дошкольных образовательных организаций | AD195: рублей | AE195: 0 | AF195: 0 | AG195: 0 | AH195: 0 | AI195: 0 | AJ195: 0 | AK195: =AE195 -> 0 | AL195: 2023-2028
B196: 8 | C196: 0 | D196: 5 | E196: 0 | F196: 7 | G196: 0 | H196: 1 | I196: 1 | J196: 7 | K196: 4 | L196: 0 | M196: 1 | N196: S | O196: 0 | P196: 4 | Q196: 4 | R196: 0 | S196: 1 | T196: 7 | U196: 4 | V196: 0 | W196: 1 | X196: 1 | Y196: 8 | Z196: 0 | AA196: 0 | AB196: 1 | AC196: Показатель 1.Доля использованных средств муниципального бюджета на укрепление МТБ дошкольных образовательных учреждений | AD196: % | AE196: 100 | AF196: 100 | AG196: 100 | AH196: 100 | AI196: 100 | AJ196: 100 | AK196: 100 | AL196: 2023-2028
B197: 8 | C197: 0 | D197: 5 | E197: 0 | F197: 7 | G197: 0 | H197: 2 | I197: 1 | J197: 7 | K197: 4 | L197: 0 | M197: 1 | N197: S | O197: 0 | P197: 4 | Q197: 4 | R197: 0 | S197: 1 | T197: 7 | U197: 4 | V197: 0 | W197: 1 | X197: 1 | Y197: 9 | Z197: 0 | AA197: 0 | AB197: 0 | AC197: Мероприятие 1.9. Расходы на укрепление материально-технической базы муниципальных общеобразовательных организаций | AD197: рублей | AE197: 0 | AG197: 0 | AH197: 0 | AI197: 0 | AJ197: 0 | AK197: =AE197+AF197 -> 0 | AL197: 2023-2028
B198: 8 | C198: 0 | D198: 5 | E198: 0 | F198: 7 | G198: 0 | H198: 2 | I198: 1 | J198: 7 | K198: 4 | L198: 0 | M198: 1 | N198: S | O198: 0 | P198: 4 | Q198: 4 | R198: 0 | S198: 1 | T198: 7 | U198: 4 | V198: 0 | W198: 1 | X198: 1 | Y198: 9 | Z198: 0 | AA198: 0 | AB198: 1 | AC198: Показатель 1.Доля использованных средств муниципального бюджета на укрепление МТБ общеобразовательных учреждений | AD198: % | AE198: 100 | AF198: 100 | AG198: 100 | AH198: 100 | AI198: 100 | AJ198: 100 | AK198: 100 | AL198: 2023-2028
B199: 8 | C199: 0 | D199: 5 | E199: 0 | F199: 7 | G199: 0 | H199: 2 | I199: 1 | J199: 7 | K199: 4 | L199: 0 | M199: 1 | N199: 1 | O199: 0 | P199: 4 | Q199: 4 | R199: 0 | S199: 1 | T199: 7 | U199: 4 | V199: 0 | W199: 1 | X199: 1 | Y199: 1 | Z199: 0 | AA199: 0 | AB199: 0 | AC199: Мероприятие 1.10 Субсидии на укрепление материально-технической базы муниципальных общеобразовательных организаций | AD199: рублей | AE199: 0 | AF199: 0 | AG199: 0 | AH199: 0 | AI199: 0 | AJ199: 0 | AK199: =AE199 -> 0 | AL199: 2023-2028
B200: 8 | C200: 0 | D200: 5 | E200: 0 | F200: 7 | G200: 0 | H200: 2 | I200: 1 | J200: 7 | K200: 4 | L200: 0 | M200: 1 | N200: 1 | O200: 0 | P200: 4 | Q200: 4 | R200: 0 | S200: 1 | T200: 7 | U200: 4 | V200: 0 | W200: 1 | X200: 1 | Y200: 1 | Z200: 0 | AA200: 0 | AB200: 1 | AC200: Показатель 1.Доля использованной субсидии на укрепление МТБ общеобразовательных организаций | AD200: % | AE200: 100 | AF200: 100 | AG200: 100 | AH200: 100 | AI200: 100 | AJ200: 100 | AK200: 100 | AL200: 2023-2028
B201: 8 | C201: 0 | D201: 5 | E201: 0 | F201: 7 | G201: 0 | H201: 2 | I201: 1 | J201: 7 | K201: 4 | L201: 0 | M201: 1 | N201: 1 | O201: 1 | P201: 4 | Q201: 4 | R201: 0 | S201: 1 | T201: 7 | U201: 4 | V201: 0 | W201: 1 | X201: 1 | Y201: 1 | Z201: 1 | AA201: 0 | AB201: 0 | AC201: Мероприятие 1.11.Субсидии на укрепление материально-технической базы муниципальных дошкольных образовательных организаций | AD201: рублей | AE201: 0 | AF201: 0 | AG201: 0 | AH201: 0 | AI201: 0 | AJ201: 0 | AK201: =AE201 -> 0 | AL201: 2023-2028
B202: 8 | C202: 0 | D202: 5 | E202: 0 | F202: 7 | G202: 0 | H202: 2 | I202: 1 | J202: 7 | K202: 4 | L202: 0 | M202: 1 | N202: 1 | O202: 1 | P202: 4 | Q202: 4 | R202: 0 | S202: 1 | T202: 7 | U202: 4 | V202: 0 | W202: 1 | X202: 1 | Y202: 1 | Z202: 1 | AA202: 0 | AB202: 1 | AC202: Показатель 1.Доля использованной субсидии на укрепление МТБ дошкольных образовательных организаций | AD202: % | AE202: 100 | AF202: 100 | AG202: 100 | AH202: 100 | AI202: 100 | AJ202: 100 | AK202: 100 | AL202: 2023-2028
B203: 8 | C203: 0 | D203: 5 | E203: 0 | F203: 7 | G203: 0 | H203: 2 | I203: 1 | J203: 7 | K203: 4 | L203: 0 | M203: 1 | N203: 1 | O203: 8 | P203: 0 | Q203: 0 | R203: 0 | S203: 1 | T203: 7 | U203: 4 | V203: 0 | W203: 1 | X203: 1 | Y203: 1 | Z203: 2 | AA203: 0 | AB203: 0 | AC203: Мероприятие 1.12.Иные межбюджетные трансферты местным бюджетам на реализацию проектов в рамках поддержки школьных инициатив Тверской области | AD203: рублей | AE203: 116500
B204: 8 | C204: 0 | D204: 5 | E204: 0 | F204: 7 | G204: 0 | H204: 2 | I204: 1 | J204: 7 | K204: 4 | L204: 0 | M204: 1 | N204: 1 | O204: 8 | P204: 0 | Q204: 0 | R204: 0 | S204: 1 | T204: 7 | U204: 4 | V204: 0 | W204: 1 | X204: 1 | Y204: 1 | Z204: 2 | AA204: 0 | AB204: 1 | AC204: Показатель
B205: 8 | C205: 0 | D205: 5 | E205: 0 | F205: 7 | G205: 0 | H205: 2 | I205: 1 | J205: 7 | K205: 4 | L205: 0 | M205: 1 | N205: S | O205: 8 | P205: 0 | Q205: 0 | R205: 0 | S205: 1 | T205: 7 | U205: 4 | V205: 0 | W205: 1 | X205: 1 | Y205: 1 | Z205: 2 | AA205: 0 | AB205: 0 | AC205: Мероприятие 1.13. Софинансирование на реализацию проектов в рамках поддержки школьных инициатив Тверской области за счет средств местного бюджета | AD205: рублей | AE205: 12000 | AF205: 0 | AG205: 0 | AH205: 0 | AI205: 0 | AJ205: 0 | AK205: =AE205 -> 12000
... 54 more rows
